{"text_format":"1","workbook":"xlsx","n_sheets":9,"sheets":["Introduction","Part 1 - About","Part 2 - Disclosure checklist","Part 3 - Reporting entities","Part 4 - Government revenues","Part 5 - Company data","UPSLIDE_UndoFormatting","UPSLIDE_Undo","Lists"],"not_rendered":{"charts":0,"images":2,"macros":1,"external_links":1,"defined_names":19,"comments":4,"pivot_tables":0},"unopened":[],"bounds":{"document_bytes":16777216,"sheet_cells":100000,"rows_first":2000,"rows_last":500,"rows_between":2000,"halvings":0,"cell_chars":16384,"cell_head_chars":4096},"cells_cut":0,"cells_raw":0,"read":"whole","date_system":"1900"}

{"sheet":"Introduction","index":0,"n_rows":51,"n_cols":7,"rows_kept":51,"cut":false,"hidden":false,"merged":[[49,2,49,6],[32,2,32,6],[46,2,46,6],[19,2,19,4],[13,2,13,4],[45,2,45,6],[18,2,18,4]]}
[]
[]
[]
[null,null,null,null,"Completed on:",null,"YYYY-MM-DD"]
[]
[]
[]
[]
[]
[null,null,"Summary data template for EITI disclosures"]
[null,null,"Version 2.0 as of 1 July 2019"]
[]
[null,null,"Filling in this summary data template with EITI Report data will make your EITI Report data accessible in a machine-readable format. (requirement 7.2.d) "]
[null,null,"“Make the EITI Report available in an open data format (xlsx or csv) online and publicise its availability.” \n- EITI Requirement 7.1.c"]
[]
[null,null,"How publishing EITI Report data works:"]
[null,null,"1. Use one excel workbook per fiscal year covered. If you are reporting on both oil & gas and mining, both can fit into one workbook."]
[null,null,"2. Fill in the entire workbook - parts 1-5."]
[null,null,"3. This Data sheet should be submitted alongside the EITI Report. Send it to the International Secretariat: data@eiti.org "]
[null,null,"4. The data will be used to populate the global EITI data repository, available on the international EITI website: https://eiti.org/data. You will receive the file back which will be fit for publication via the channels of your choice. "]
[]
[null,null,"This template should be completed in full and submitted to the EITI International Secretariat for each fiscal year covered under EITI Reporting."]
[]
[]
[null,null,"This workbook has five parts. Insert the data starting with part 1 and work your way through to part 5"]
[]
[null,null,"Part 1 (About): Insert country and data characteristics."]
[null,null,"Part 2 (Disclosure checklist): Fill in contextual and aggregate financial data for EITI Requirements 2, 3, 4, 5, and 6."]
[null,null,"Part 3 (Reporting entities): Enter reporting entities (Government agencies, companies and projects) and related information. "]
[null,null,"Part 4 (Government revenues): Enter data on government revenues per revenue stream, according to GFS classification."]
[null,null,"Part 5 (Company data): Enter company- and project-level data per revenue stream."]
[]
[null,null,"The International Secretariat can provide advice and support on request. Please contact data@eiti.org"]
[]
[null,null,"Cells in orange must be completed before submission",null,"Cells in light blue are for supplying sources and/or comments",null,"White cells require no action"]
[]
[null,null,"Cells in grey are for your information: You will receive immediate feedback on many of the data entries and some cells will fill in automatically."]
[]
[]
[null,null,"Terminology: Disclosure",null,"Terminology: Simple options"]
[null,null,"Yes, systematically disclosed: If data is regularly and publicly disclosed by government agencies or companies, and the data is reliable, please select Yes, systematically disclosed",null,"Yes: All the aspects of the question are answered/covered."]
[null,null,"Yes, through EITI reporting: If the EITI Report covers certain data gaps in government or corporate disclosures, please select \"Yes, in EITI Report\".",null,"Partially:Aspects of the question have been answered/covered."]
[null,null,"Not available: The data is applicable in the country, but no data or information is available.",null,"No: No information is covered."]
[null,null,"Not applicable: If a requirement is not relevant, please select \"Not applicable\". Refer to any evidence documented as part of the EITI Report, or through minutes of a multi-stakeholder meeting. ",null,"Not applicable: The question is not relevant for the case, When it is required, please refer to evidence of non-applicability."]
[]
[null,null,"For the latest version of Summary data templates, see https://eiti.org/summary-data-template"]
[null,null,"Give us your feedback or report a conflict in the data! Write to us at  data@eiti.org"]
[]
[null,null,"EITI International Secretariat"]
[null,null,"Phone: +47 222 00 800      E-mail: secretariat@eiti.org      Twitter: @EITIorg      www.eiti.org"]
[null,"Country or area","Address: Rådhusgata 26, 0151 Oslo, Norway      P.O. Box: Postboks 340 Sentrum, 0101 Oslo, Norway"]

{"sheet":"Part 1 - About","index":1,"n_rows":68,"n_cols":7,"rows_kept":68,"cut":false,"hidden":false,"merged":[[77,2,77,4],[71,2,71,6],[72,2,72,6],[73,2,73,6],[74,2,74,6],[76,2,76,4],[67,2,67,6],[1,2,1,6],[2,2,2,6],[3,2,3,6],[4,2,4,6],[5,2,5,6],[63,2,63,6],[66,2,66,6],[62,2,62,6],[61,2,61,6],[64,2,64,6],[65,2,65,6],[6,2,6,6]]}
[]
[null,null,"Part 1 (About) covers country and data characteristics."]
[null,null,"How to complete this sheet:"]
[null,null,"1. Starting from the top, select your responses in the grey column. Guidance is provided in yellow boxes once the cell is selected. "]
[null,null,"2. Once certain questions are answered, further guidance and questions may appear. Please respond to each of these, until completed. "]
[null,null,"3. Include any additional information or comments as needed in the Source/Comments\" column."]
[null,null,"If you have any questions, please contact data@eiti.org"]
[]
[null,null,"Cells in orange must be completed",null,"Cells in light blue are for voluntary input",null,"White cells require no action"]
[]
[null,null,"Part 1 - About "]
[null,null,"Description",null,"Enter data in this column",null,"Source / Comments"]
[null,null,"Country or area"]
[null,"Country or area","Country or area name",null,"Armenia"]
[null,"Country or area","ISO Alpha-3 Code",null,{"$f":"IFERROR(VLOOKUP($E$14,Table1_Country_codes_and_currencies[],3,FALSE),\"\")","v":"ARM"}]
[null,"Country or area","National currency name",null,{"$f":"IFERROR(VLOOKUP($E$14,Table1_Country_codes_and_currencies[],7,FALSE),\"\")","v":"Armenian dram"}]
[null,"Country or area","National currency ISO-4217",null,{"$f":"IFERROR(VLOOKUP($E$14,Table1_Country_codes_and_currencies[],5,FALSE),\"\")","v":"AMD"}]
[null,null,"Fiscal year covered by this data file"]
[null,"Fiscal year covered by this data file","Start Date",null,"2021-01-01"]
[null,"Fiscal year covered by this data file","End Date",null,"2021-12-31"]
[null,null,"Data source"]
[null,"Data source","Has an EITI Report been prepared by an Independent Administrator?",null,"Yes"]
[null,"Data source","What is the name of the company?",null,"Ernst & Young CJSC "]
[null,"Data source","Date that the EITI Report was made public",null,"2022-12-22"]
[null,"Data source","URL, EITI Report",null,"https://www.eiti.am/en/annual-reports/2022"]
[null,"Data source","Does the government systematically disclose EITI data at a single location?",null,"Partially"]
[null,"Data source","Publication date of the EITI data",null,"2022-12-22"]
[null,"Data source","Website link (URL) to EITI data",null,"https://reports.eiti.am/hy/"]
[null,"Data source","Are there other files of relevance?",null,"No"]
[null,"Data source","Date that other file was made public",null,{"$f":"IF(OR($E$29=Lists!$I$4,$E$29=Lists!$I$5),\"<Date in this format: YYYY-MM-DD>\",\"\")","v":""}]
[null,"Data source","URL",null,{"$f":"IF(OR($E$29=Lists!$I$4,$E$29=Lists!$I$5),\"<URL>\",\"\")","v":""}]
[null,null,"EITI Requirement 7.2: Data accessibility and open data"]
[null,null,"Does the government have an open data policy?",null,"Yes, through EITI reporting",null,{"$f":"IF(OR($E$29=Lists!$I$4,$E$29=Lists!$I$5),\"<URL>\",\"\")","v":""}]
[null,"Data coverage / scope","Open data portal / files",null,"https://reports.eiti.am/hy/"]
[null,"Data coverage / scope","Data coverage / scope"]
[null,"Data coverage / scope","Sector coverage"]
[null,"Data coverage / scope","Oil",null,"No"]
[null,"Data coverage / scope","Gas",null,"No"]
[null,"Data coverage / scope","Mining (incl. Quarrying)",null,"Yes"]
[null,"Data coverage / scope","Other, non-upstream sectors",null,"No"]
[null,"Data coverage / scope","If yes, please specify name (insert new rows if multiple)",null,"Not applicable"]
[null,"Data coverage / scope","Number of reporting government entities (incl SOEs if recipient)",null,3]
[null,"Data coverage / scope","Number of reporting companies (incl SOEs if payer)",null,24,null,"As of the end of the reporting year, 24 companies in Armenia have the right (permission) to extract metal ore, 10 have been considered material "]
[null,"Data coverage / scope","Reporting currency (ISO-4217 currency codes)",null,"AMD"]
[null,"Data coverage / scope","Exchange rate used: 1 USD = ",null,503.19499999999999]
[null,"Data coverage / scope","Exchange rate source (URL,…)",null,"www.cba.am"]
[null,"Data coverage / scope","EITI Requirement 4.7: Disaggregation"]
[null,"Data coverage / scope","… by revenue stream",null,"Yes"]
[null,null,"… by government agency",null,"Yes"]
[null,null,"… by company",null,"Yes"]
[null,null,"… by project",null,"Partially"]
[null,null,"Data overview / requirement",null,{"$f":"SUM(E53:E56)","v":1}]
[null,null,"Systematically disclosed",null,{"$f":"COUNTIF('Part 2 - Disclosure checklist'!$D:$D,Lists!$K$4)/SUM(COUNTIF('Part 2 - Disclosure checklist'!$D:$D,\"*EITI Reporting or systematically disclosed?*\"),COUNTIF('Part 2 - Disclosure checklist'!$D:$D,Lists!$K$4),COUNTIF('Part 2 - Disclosure checklist'!$D:$D,Lists!$K$5),COUNTIF('Part 2 - Disclosure checklist'!$D:$D,Lists!$K$6),COUNTIF('Part 2 - Disclosure checklist'!$D:$D,Lists!$K$7))","v":0.47368421052631576},null,"Calculated using the Disclosure checklist"]
[null,null,"Through EITI Reporting",null,{"$f":"COUNTIF('Part 2 - Disclosure checklist'!$D:$D,Lists!$K$5)/SUM(COUNTIF('Part 2 - Disclosure checklist'!$D:$D,\"*EITI Reporting or systematically disclosed?*\"),COUNTIF('Part 2 - Disclosure checklist'!$D:$D,Lists!$K$4),COUNTIF('Part 2 - Disclosure checklist'!$D:$D,Lists!$K$5),COUNTIF('Part 2 - Disclosure checklist'!$D:$D,Lists!$K$6),COUNTIF('Part 2 - Disclosure checklist'!$D:$D,Lists!$K$7))","v":0.31578947368421051},null,"Calculated using the Disclosure checklist"]
[null,"Contact details: data submission","Not applicable",null,{"$f":"COUNTIF('Part 2 - Disclosure checklist'!$D:$D,Lists!$K$6)/SUM(COUNTIF('Part 2 - Disclosure checklist'!$D:$D,\"*EITI Reporting or systematically disclosed?*\"),COUNTIF('Part 2 - Disclosure checklist'!$D:$D,Lists!$K$4),COUNTIF('Part 2 - Disclosure checklist'!$D:$D,Lists!$K$5),COUNTIF('Part 2 - Disclosure checklist'!$D:$D,Lists!$K$6),COUNTIF('Part 2 - Disclosure checklist'!$D:$D,Lists!$K$7))","v":0.14035087719298245},null,"Calculated using the Disclosure checklist"]
[null,"Contact details: data submission","Not available",null,{"$f":"COUNTIF('Part 2 - Disclosure checklist'!$D:$D,Lists!$K$7)/SUM(COUNTIF('Part 2 - Disclosure checklist'!$D:$D,\"*EITI Reporting or systematically disclosed?*\"),COUNTIF('Part 2 - Disclosure checklist'!$D:$D,Lists!$K$4),COUNTIF('Part 2 - Disclosure checklist'!$D:$D,Lists!$K$5),COUNTIF('Part 2 - Disclosure checklist'!$D:$D,Lists!$K$6),COUNTIF('Part 2 - Disclosure checklist'!$D:$D,Lists!$K$7))","v":7.0175438596491224E-2},null,"Calculated using the Disclosure checklist"]
[null,"Contact details: data submission","Name and contact information of the person submitting this file"]
[null,"Contact details: data submission","Name",null,"Anna Martirosyan"]
[null,null,"Organisation",null,"Ernst & Young CJSC"]
[null,null,"Email address",null,"anna.martirosyan@am.ey.com"]
[]
[]
[null,null,"For the latest version of Summary data templates, see https://eiti.org/summary-data-template"]
[null,null,"Give us your feedback or report a conflict in the data! Write to us at  data@eiti.org"]
[]
[null,null,"EITI International Secretariat"]
[null,null,"Phone: +47 222 00 800      E-mail: secretariat@eiti.org      Twitter: @EITIorg      www.eiti.org"]
[null,"Country or area","Address: Rådhusgata 26, 0151 Oslo, Norway      P.O. Box: Postboks 340 Sentrum, 0101 Oslo, Norway"]

{"sheet":"Part 2 - Disclosure checklist","index":2,"n_rows":179,"n_cols":8,"rows_kept":179,"cut":false,"hidden":false,"merged":[[178,1,178,7],[2,1,2,7],[3,1,3,7],[4,1,4,7],[5,1,5,7],[6,1,6,7],[7,1,7,7],[173,1,173,7],[174,1,174,7],[176,1,176,7],[177,1,177,7],[8,1,8,7]]}
[]
[null,"Part 2 (Disclosure checklist) covers contextual and aggregate financial data for EITI Requirements 2, 3, 4, 5, and 6."]
[null,"How to complete this sheet:"]
[null,"For each row, please complete the following steps"]
[null,"1.Starting from the top, begin by responding to questions in the first column (Inclusion). Guidance will be provided in yellow boxes once the cell is highlighted. Click the cells of each EITI Requirement for the precise language of the EITI Standard."]
[null,"2.More guidance will appear as you fill the cells. Please fill out as directed, completing every column for each row before beginning the next."]
[null,"For example, when choosing \"Yes, in the EITI Report\" \"please include the section in the EITI Report\" appears in the Source / units box."]
[null,"3. Include any additional information or comments as needed in the Comments / Notes\" column."]
[null,"If you have any questions, please contact data@eiti.org"]
[]
[null,"Cells in orange must be completed",null,"Cells in light blue are for voluntary input",null,"White cells require no action"]
[]
[null,"Part 2 - Disclosure checklist"]
[null,"Please fill in answers to all the questions posed below. "]
[]
[null,"Requirement",null,"Inclusion",null,"Source / units",null,"Comments / Notes"]
[null,"EITI Requirement 2.1: Legal framework and fiscal regime"]
[null,"Does the government publish information about"]
[null,"Laws and regulations?",null,"Yes, systematically disclosed",null,"https://www.arlis.am/, https://e-gov.am/, http://mtad.am/hy/, http://mnp.am/ , http://mes.am/hy/, https://www.ecoinspect.am/laws/   "]
[null,"Overview of government agencies' roles?",null,"Yes, systematically disclosed",null,"https://www.arlis.am/"]
[null,"Mineral and petroleum rights' regime?",null,"Yes, systematically disclosed",null,"https://www.arlis.am/"]
[null,"Fiscal regime?",null,"Yes, systematically disclosed",null,"https://www.arlis.am/",null,"Changes are disclosed in Section 2.1 of EITI report"]
[]
[null,"EITI Requirement 2.2: Contract and license allocations"]
[null,"Does the government publish information about"]
[null,"the award process(es)?",null,"Yes, systematically disclosed",null,"https://www.arlis.am/documentview.aspx?docid=164787"]
[null,"and the technical and financial criteria used?",null,"Yes, systematically disclosed",null,"https://www.arlis.am/DocumentView.aspx?DocID=82720"]
[null,"the transfer process(es)?",null,"Yes, systematically disclosed",null,"https://www.arlis.am/documentview.aspx?docid=164787"]
[null,"and the technical and financial criteria used?",null,"Yes, systematically disclosed",null,"https://www.arlis.am/DocumentView.aspx?DocID=82720"]
[null,"bidding rounds/process(es)?",null,"Yes, systematically disclosed",null,"https://www.arlis.am/documentview.aspx?docid=164787"]
[null,"No. of license awards and transfers for the covered year",null,0,null,"Section 2.2 of EITI report",null,"No license was awarded or transferred during the reporting year "]
[]
[null,"EITI Requirement 2.3: Register of licenses"]
[null,"License register for mining sector",null,"Yes, systematically disclosed",null,"https://mtad.am/pages/extractive-industries-transparency-initiative?tab=1"]
[null,"License register for petroleum sector",null,"Not applicable",null,"See part 1 of this excel file",null,"Armenia posseses no oil reserves,no oil production and no refineries"]
[]
[null,"EITI Requirement 2.4: Contract disclosure"]
[null,"Government policy on contract disclosure",null,"Yes, through EITI reporting",null,"Section 2.2  of EITI report"]
[null,"Are contracts or full license texts disclosed?",null,"Yes, systematically disclosed",null,"https://mtad.am/pages/extractive-industries-transparency-initiative?tab=1"]
[null,"Contract register for mining sector",null,"Yes, systematically disclosed",null,"https://mtad.am/pages/extractive-industries-transparency-initiative?tab=1"]
[null,"Contract register for petroleum sector",null,"Not applicable",null,"See part 1 of this excel file",null,"Armenia posseses no oil reserves,no oil production and no refineries"]
[]
[null,"EITI Requirement 2.5: Beneficial ownership",null,null,null,null,null,"Section 2.1 of EITI report"]
[null,"Government policy on beneficial ownership",null,"Yes, systematically disclosed",null,"https://www.arlis.am/documentview.aspx?docid=164787 , https://www.arlis.am/DocumentView.aspx?DocID=172246 , https://www.arlis.am/DocumentView.aspx?DocID=171907"]
[null,"Is beneficial ownership data disclosed?",null,"Yes, systematically disclosed",null,"https://www.e-register.am/am/, https://www.eiti.am/hy/legal-owners/?tab=104"]
[null,"Beneficial ownership registry",null,"State Register of the Legal Entities of the Ministry of Justice of the Republic of Armenia",null,"https://www.e-register.am/am/, https://www.eiti.am/hy/legal-owners/?tab=104"]
[]
[null,"EITI Requirement 2.6: State participation"]
[null,"Does the government report how it participates in the extractive sector?",null,"Yes, through EITI reporting",null,"https://www.e-gov.am/sessions_writing_voting/archive/2021/09/30/"]
[null,"References to state-owned enterprises portals or company website(s), for example as stated in the Report (Add rows if several SOEs)",null,"Yes, through EITI reporting",null,"http://www.zcmc.am/eng/",null,"The particpation share of the Government in the capital charter of ZCMC is set at 25%. "]
[null,"References to state-owned enterprises or company Audited Financial Statement (Add rows if several SOEs)",null,"Yes, systematically disclosed",null,"http://www.zcmc.am/files/FS_ZCMC%20SA_2021_Eng.pdf"]
[]
[null,"EITI Requirement 3.1: Exploration"]
[null,"Overview of the extractive industries, including any significant exploration activities",null,"Yes, through EITI reporting",null,"Section 3.1 of EITI report"]
[]
[null,"EITI Requirement 3.2: Production by commodity"]
[null,"(Harmonised System Codes)"]
[null,"Disclosure of production volumes",null,"Yes, systematically disclosed",null,"https://statbank.armstat.am/pxweb/hy/ArmStatBank/ArmStatBank__3%20Industry,%20Construction,%20trade%20and%20services__32%20Industry/IC-in-e.px/table/tableViewLayout2/?rxid=636adc14-dabb-49b4-853a-d62d5b935d00"]
[null,"Disclosure of production values",null,"Yes, through EITI reporting",null,null,null,"Section 3.3 of EITI report"]
[null,"Copper (2603), volume",null,{"$f":"SUMIFS(Companies15[[#All],[Production (volume)]],Companies15[[#All],[Commodities (one commodity/row)]],'Part 3 - Reporting entities'!E37)","v":370332.75999999995}]
[null,{"$f":"LEFT(B60,SEARCH(\",\",B60))&\" value\"","v":"Copper (2603), value"},null,{"$f":"SUMIFS(Companies15[[#All],[Production (value)]],Companies15[[#All],[Commodities (one commodity/row)]],'Part 3 - Reporting entities'!E37)","v":170074062006.44415},null,null,null,"<method of value calculation, if available>"]
[null,"Molybdenum (2613), volume",null,{"$f":"SUMIFS(Companies15[[#All],[Production (volume)]],Companies15[[#All],[Commodities (one commodity/row)]],'Part 3 - Reporting entities'!$E$38)","v":9883.48},null,"Tonnes"]
[null,{"$f":"LEFT(B62,SEARCH(\",\",B62))&\" value\"","v":"Molybdenum (2613), value"},null,{"$f":"SUMIFS(Companies15[[#All],[Production (value)]],Companies15[[#All],[Commodities (one commodity/row)]],'Part 3 - Reporting entities'!$E$38)","v":21992216715.787441},null,"AMD",null,"<method of value calculation, if available>"]
[null,"Ferro, alloys, manganese (7202), volume",null,{"$f":"SUMIFS(Companies15[[#All],[Production (volume)]],Companies15[[#All],[Commodities (one commodity/row)]],'Part 3 - Reporting entities'!$E$39)","v":8441.77},null,"Tonnes"]
[null,{"$f":"LEFT(B64,SEARCH(\", volume\",B64))&\" value\"","v":"Ferro, alloys, manganese (7202), value"},null,{"$f":"SUMIFS(Companies15[[#All],[Production (value)]],Companies15[[#All],[Commodities (one commodity/row)]],'Part 3 - Reporting entities'!$E$39)","v":41797758738.480965},null,"AMD",null,"<method of value calculation, if available>"]
[null,"Zinc (2608), volume",null,{"$f":"SUMIFS(Companies15[[#All],[Production (volume)]],Companies15[[#All],[Commodities (one commodity/row)]],'Part 3 - Reporting entities'!E43)","v":10622},null,"Tonnes"]
[null,{"$f":"LEFT(B66,SEARCH(\",\",B66))&\" value\"","v":"Zinc (2608), value"},null,{"$f":"SUMIFS(Companies15[[#All],[Production (value)]],Companies15[[#All],[Commodities (one commodity/row)]],'Part 3 - Reporting entities'!E43)","v":8122000000},null,"AMD",null,"<method of value calculation, if available>"]
[null,"Gold (7108)",null,{"$f":"SUMIFS(Companies15[[#All],[Production (volume)]],Companies15[[#All],[Commodities (one commodity/row)]],'Part 3 - Reporting entities'!E49)","v":14018.09},null,"Tonnes"]
[null,"Gold (7108)",null,{"$f":"SUMIFS(Companies15[[#All],[Production (value)]],Companies15[[#All],[Commodities (one commodity/row)]],'Part 3 - Reporting entities'!E49)","v":60827497918},null,"AMD",null,"<method of value calculation, if available>"]
[]
[null,"EITI Requirement 3.3: Exports"]
[null,"Disclosure of export volumes",null,"Yes, through EITI reporting",null,"https://comtrade.un.org/data/",null,"Section 3.4.1 of EITI report"]
[null,"Disclosure of export values",null,"Yes, systematically disclosed"]
[null,"Copper (2603), volume",null,361001,null,"Tonnes"]
[null,{"$f":"LEFT(B74,SEARCH(\",\",B74))&\" value\"","v":"Copper (2603), value"},null,697528000,null,"USD"]
[null,"Molybdenum (2613), volume",null,9330,null,"Tonnes"]
[null,{"$f":"LEFT(B76,SEARCH(\",\",B76))&\" value\"","v":"Molybdenum (2613), value"},null,111413000,null,"USD"]
[null,"Ferro, alloys, manganese (7202)",null,2613,null,"Tonnes"]
[null,{"$f":"LEFT(B78,SEARCH(\",\",B78))&\" value\"","v":"Ferro, value"},null,180400000,null,"USD"]
[null,"Zinc (2608), volume",null,11998,null,"Tonnes"]
[null,{"$f":"LEFT(B80,SEARCH(\",\",B80))&\" value\"","v":"Zinc (2608), value"},null,16265000,null,"USD"]
[null,"Gold (7108), volume",null,2257.42,null,"Tonnes",null,"gold alloy and precious metal concentrate containing gold"]
[null,{"$f":"LEFT(B82,SEARCH(\",\",B82))&\" value\"","v":"Gold (7108), value"},null,121606000,null,"USD"]
[]
[null,"EITI Requirement 4.1: Comprehensiveness"]
[null,"Does the government fully disclose extractive sector revenues by revenue stream?",null,"Yes, through EITI reporting",null,"Section 4 of EITI report"]
[null,"Are MSG decisions on materiality thresholds publicly available?",null,"Yes, through EITI reporting",null,"https://www.eiti.am/file_manager/EITI%20Documents/Minutes/MSG_meeting_minute_27_04_2022_arm.pdf"]
[null,"Reconciliation coverage",null,{"$f":"SUM('Part 5 - Company data'!J68/'Part 4 - Government revenues'!J49)","v":0.4779782845797208},null,"Calculated using total of government revenues (part 4), and total per-company data (part 5)"]
[]
[null,"EITI Requirement 4.2: In-kind revenues"]
[null,"Does the government disclose data on in-kind revenues and sales of state share of production?",null,"Not applicable",null,"https://www.eiti.am/hy/agenda-protocols-other-related-documents",null,"MSG decision dated 27 April 2022"]
[null,"If yes, what was the volume received?"]
[null,"If yes, what was the total revenue transferred to the state from the proceeds of oil, gas and minerals sold?",null,null,null,"USD"]
[]
[null,"EITI Requirement 4.3: Barter agreements"]
[null,"Does the government disclose information on barter and infrastructure agreements?",null,"Not applicable",null,"https://www.eiti.am/hy/agenda-protocols-other-related-documents ",null,"MSG decision dated 27 April 2022"]
[null,"If yes, what was the total revenues received from barter and infrastructure agreements?",null,null,null,"USD"]
[]
[null,"EITI Requirement 4.4: Transportation revenues"]
[null,"Does the government disclose information on transportation revenues?",null,"Not applicable",null,"https://www.eiti.am/hy/agenda-protocols-other-related-documents ",null,"MSG decision dated 27 April 2022"]
[null,"If yes, what was the total revenues received from transportation of commodities?",null,null,null,"USD"]
[]
[null,"EITI Requirement 4.5: SOE transactions"]
[null,"Does the government disclose information on SOE transactions?",null,"Yes, through EITI reporting",null,"https://www.e-gov.am/sessions_writing_voting/archive/2021/09/30/",null,"The particpation share of the Government in the capital charter of ZCMC is set at 25%. "]
[null,"If yes, what was the total revenues received by SOEs?",null,"Not applicable",null,"USD"]
[]
[null,"EITI Requirement 4.6: Direct subnational payments"]
[null,{"$f":"\"Does the government disclose information on\"&RIGHT(B107,LEN(B107)-SEARCH(\":\",B107,1))&\"?\"","v":"Does the government disclose information on Direct subnational payments?"},null,"Yes, through EITI reporting",null,null,null,"Section 4.2 of EITI report"]
[null,"If yes, what was the total sub-national revenues received?",null,{"$f":"10^9*1.225734108","v":1225734108},null,"AMD"]
[]
[null,"EITI Requirement 4.8: Data timeliness"]
[null,"Data timeliness (no. of years from fiscal year end to publication)",null,{"$f":"IFERROR(IF(_xlfn.DAYS('Part 1 - About'!$E$24,'Part 1 - About'!$E$20)/365>0,_xlfn.DAYS('Part 1 - About'!$E$24,'Part 1 - About'!$E$20)/365,_xlfn.DAYS('Part 1 - About'!$E$27,'Part 1 - About'!$E$20)/365),\"Automatically completed using the 1. About sheet\")","v":0.97534246575342465}]
[]
[null,"EITI Requirement 4.9: Data quality"]
[null,"Does government routinely disclose financial data from requirement 4.1 (full disclosure of revenue streams for both government and companies) of the the EITI Standard?",null,"Yes, through EITI reporting",null,"Section 4 of EITI report",null,"Section 2.5 of EITI report"]
[null,"Is the data subject to credible, independent audits, applying international standards?",null,"Yes, through EITI reporting",null,"Section 1.3 of EITI report"]
[null,"Are government agencies subject to credible, independent audits?",null,"Yes, systematically disclosed",null,"https://www.arlis.am/DocumentView.aspx?docid=12966 , https://www.arlis.am/documentview.aspx?docid=164910",null,"Relates to internal audit"]
[null,null,null,"Yes, systematically disclosed",null,"https://www.arlis.am/documentview.aspx?docid=164910"]
[null,"Are companies subject to credible, independent audits?",null,"Yes, systematically disclosed",null,"https://www.arlis.am/DocumentView.aspx?docID=69162 , https://www.arlis.am/DocumentView.aspx?DocID=164986"]
[null,"Company audits database",null,"Yes, systematically disclosed",null,"https://www.arlis.am/DocumentView.aspx?docid=141595 , https://www.petekamutner.am/Reports_vh.aspx?rptid=0"]
[]
[null,"EITI Requirement 5.1: Distribution of extractive industry revenues"]
[null,"Does the government clarify whether all extractive sector revenues are recorded in the national budget (i.e. enter the government's consolidated / single-treasury account)?",null,"Yes, systematically disclosed",null,"https://www.arlis.am/DocumentView.aspx?DocID=119841"]
[null,"Does the government disclose what value of revenues are not recorded in the budget?",null,"None",null,{"$f":"IF(D124=Lists!$K$4,\"< Input URL to data source >\",IF(D124=Lists!$K$5,\"< Reference section in EITI Report >\",IF(D124=Lists!$K$6,\"< Reference evidence of non-applicability >\",\"\")))","v":""},null,"All revenues are recorded in the budget"]
[]
[null,"EITI Requirement 5.2: Subnational transfers"]
[null,"Does the government disclose information on Subnational transfers?",null,"Yes, systematically disclosed",null,"https://minfin.am/hy/page/petakan_byujei_hashvetvutyun_2021_t_tarekan_",null,"See table 4.3.2 in Section 4.3 of the EITI Report"]
[null,"If yes, how much should the government have transferred according to the revenue sharing formula?",null,120178000,null,"AMD"]
[null,"If yes, what amount of transfers could the government account for?",null,114365000,null,"AMD"]
[]
[null,"EITI Requirement 5.3: Revenue management and expenditures"]
[null,"Does the government disclose whether any extractive sector revenues are earmarked (i.e. pinned to specific uses, programmes, geographical zones)?",null,"Yes, systematically disclosed",null,"https://minfin.am/hy/page/petakan_byujei_hashvetvutyun_2021_t_tarekan_"]
[null,"Does the government disclose a description of the country’s budget and audit processes?",null,"Yes, systematically disclosed",null,"https://minfin.am/hy/page/petakan_byujei_hashvetvutyun_2021_t_tarekan_"]
[null,"Does the government disclose publicly available information about budgets and \nexpenditures? - add rows if several",null,"Yes, systematically disclosed",null,"https://minfin.am/hy/page/petakan_byujei_hashvetvutyun_2020_t_tarekan_"]
[]
[null,"EITI Requirement 6.1: Social expenditures"]
[null,"Does the government disclose information on Social expenditures?",null,"Yes, through EITI reporting",null,"Section 5.3 of EITI report"]
[null,"If yes, what was the total mandatory social expenditures received?",null,{"$f":"'Part 4 - Government revenues'!J29","v":806758000},null,"AMD"]
[null,"If yes, what was the total voluntary social expenditures received?",null,0,null,"AMD",null,"Volunrary social expenditures are not being disclosed by the government. "]
[null,"Do companies disclose information on Social expenditures?",null,"Yes, through EITI reporting",null,"Section 5.3 of EITI report"]
[null,"If yes, what was the total mandatory social expenditures paid?",null,376521307,null,"AMD"]
[null,"If yes, what was the total voluntary social expenditures paid?",null,2052299308,null,"AMD"]
[null,"Does the government disclose information on environmental payments?",null,"Yes, through EITI reporting",null,"Section 2  of EITI report"]
[null,"If yes, what was the total mandatory environmental payments?",null,{"$f":"'Part 4 - Government revenues'!J30","v":536832000},null,"AMD"]
[null,"If yes, what was the total voluntary environmental payments?",null,"Not available",null,"AMD",null,"No voluntary environmental payments are made."]
[]
[null,"EITI Requirement 6.2: Quasi-fiscal expenditures"]
[null,"Does the government or SOEs disclose information on Quasi-fiscal expenditures?",null,"Not applicable",null,"https://www.eiti.am/hy/agenda-protocols-other-related-documents ",null,"MSG decision dated 27 April 2022"]
[null,"If yes, what was the total quasi-fiscal expenditures performed by SOEs?",null,"Not applicable",null,"USD"]
[]
[null,"EITI Requirement 6.3: Economic contribution"]
[null,"Does the government disclose information on economic contribution?",null,"Yes, through EITI reporting",null,"Section 5.1 of EITI report"]
[null,"Gross Domestic Product - SNA 2008 C. Mining and quarrying, including oil and gas",null,{"$f":"10^6*386755.8","v":386755800000},null,"AMD"]
[null,"Gross Domestic Product ASM and informal sector",null,"Not available",null,"USD"]
[null,"Gross Domestic Product - all sectors",null,6982962500000,null,"AMD"]
[null,"Government revenue - extractive industries",null,{"$f":"1000000*145879.449309","v":145879449309},null,"AMD"]
[null,"Government revenue - all sectors",null,1683831463150,null,"AMD"]
[null,"Exports - extractive industries",null,{"$f":"10^6*1230.283426","v":1230283426},null,"USD"]
[null,"Exports - all sectors",null,{"$f":"10^6*2332.082153","v":2332082153},null,"USD"]
[null,"Employment - extractive sector - male",null,9700,null,"people"]
[null,"Employment - extractive sector - female",null,{"$f":"D162-D160","v":800},null,"people"]
[null,"Employment - extractive sector",null,10500,null,"people"]
[null,"Employment - all sectors",null,1088300,null,"people"]
[null,"Investment - extractive sector",null,"Not available",null,"USD"]
[null,"Investment - all sectors",null,"Not available",null,"USD"]
[]
[null,"EITI Requirement 6.4: Environmental impact"]
[null,"Does the government publish information about"]
[null,"the relevant legal and administrative rules for environmental management?",null,"Yes, systematically disclosed",null,"https://www.arlis.am/documentView.aspx?docid=157091 , https://www.arlis.am/DocumentView.aspx?docID=120135 "]
[null,"databases containing environmental impact assessments, certification schemes or similar documentation of environmental management?",null,"Yes, through EITI reporting",null,"Section 5.5 of EITI report"]
[null,"other relevant information on environmental monitoring procedures and administration?",null,"Yes, through EITI reporting",null,"Section 2 of EITI report"]
[]
[]
[null,"For the latest version of Summary data templates, see https://eiti.org/summary-data-template"]
[null,"Give us your feedback or report a conflict in the data! Write to us at  data@eiti.org"]
[]
[null,"EITI International Secretariat"]
[null,"Phone: +47 222 00 800      E-mail: secretariat@eiti.org      Twitter: @EITIorg      www.eiti.org"]
[null,"Address: Rådhusgata 26, 0151 Oslo, Norway      P.O. Box: Postboks 340 Sentrum, 0101 Oslo, Norway"]

{"sheet":"Part 3 - Reporting entities","index":3,"n_rows":77,"n_cols":10,"rows_kept":77,"cut":false,"hidden":false,"merged":[[1,1,1,9],[2,1,2,9],[3,1,3,9],[4,1,4,9],[5,1,5,9],[76,1,76,9],[77,1,77,9],[6,1,6,9],[7,1,7,9],[9,1,9,9],[10,1,10,9],[11,1,11,9],[34,1,34,9],[71,1,71,9],[72,1,72,9],[12,1,12,9],[18,1,18,9],[19,1,19,3],[74,1,74,9],[75,1,75,9]]}
[]
[null,"Part 3 (Reporting entities) covers lists reporting entities (Government agencies, companies and projects) and related information. "]
[null,"How to complete this sheet:"]
[null,"1.Please begin  with the first box (Reporting government entities list), with the name of each government reporting agency"]
[null,"2.Fill the Company ID row. Guidance will be provided in yellow boxes once the cell is highlighted."]
[null,"3.Fill the Reporting Companies' list, beginning with first column \"Full Company name\". Please fill out as directed, completing every column for each row before beginning the next."]
[null,"4.Fill the Reporting projects' list, beginning with first column \"Full project name\""]
[null,"If you have any questions, please contact data@eiti.org"]
[]
[null,"Part 3 - Reporting entities"]
[null,"Please provide a list of all reporting entities, alongside relevant information"]
[]
[null,"Reporting government entities list"]
[null,"Full name of agency","Agency type","ID number (if applicable)","Total reported"]
[null,"Tax Revenue Authority","Central goverment","<Use Legal Entity Identifier if available>",{"$f":"SUMIF(Government_revenues_table[Government entity],Government_agencies[[#This Row],[Full name of agency]],Government_revenues_table[Revenue value])","v":145879449422}]
[null,"Ministry of Territorial Administration and Development","Central goverment","<Use Legal Entity Identifier if available>",{"$f":"SUMIF(Government_revenues_table[Government entity],Government_agencies[[#This Row],[Full name of agency]],Government_revenues_table[Revenue value])","v":2032492514}]
[null,"Ministry of Environment","Central goverment","<Use Legal Entity Identifier if available>",{"$f":"SUMIF(Government_revenues_table[Government entity],Government_agencies[[#This Row],[Full name of agency]],Government_revenues_table[Revenue value])","v":321383250.10000002}]
[]
[null,"Reporting companies' list"]
[null,"Company ID references"]
[null,"Taxpayer Identification Number",null,"https://www.e-register.am/am/"]
[]
[null,"Full company name","Company type","Company ID number","Sector","Commodities (comma-seperated)","Stock exchange listing or company website ","Audited financial statement (or balance sheet, cash flows, profit/loss statement if unavailable)","Payments to Governments Report"]
[null,"“Agarak Copper Molybdenum Combine” CJSC","Private",9700039,"Mining","copper, molybdenum","n/a","https://www.azdarar.am/announcments/cat/115/01100348/",4731047632]
[null,"“Akhtala Mining and Processing Enterprise” CJSC","Private",6602309,"Mining","copper, gold, silver, zinc, lead, cadmium, sulphur, selenium","n/a","Not available",865318852]
[null,"\"Chaarat Kapan\" CJSC","Private",9416902,"Mining","gold,silver,copper zinc, lead   ","n/a","https://www.chaarat.com/wp-content/uploads/2022/04/Chaarat_2021_AR_2022.pdf",3152126343]
[null,"“Geopromining Gold” LLC","Private",1530525,"Mining","gold, silver","n/a","https://gorcntac.am/pages/report?id=917",3978669344]
[null,"“Ler-Ex” LLC","Private",9412188,"Mining","copper, molybdenum","n/a","Not available",183722274]
[null,"“Lichkvaz” CJSC","Private",2710054,"Mining","gold, silver, copper","n/a","Not available",2870627129]
[null,"“Lydian Armenia” CJSC","Private",91919,"Mining","gold, silver","n/a","https://www.lydianarmenia.am/img/uploadFiles/94843acb7fc42b08c91cLydianArmeniaCJSC_FS_2021.pdf",421552432]
[null,"“Meghradzor Gold” LLC","Private",2709666,"Mining","gold, silver, tellurium","n/a","Not available",196585967]
[null,"“Teghout” CJSC","Private",2700773,"Mining","copper, molybdenum","n/a","Not available",7859933258]
[null,"“Zangezur Copper-Molybdenum Combine” CJSC","Private",9400818,"Mining","copper, molybdenum","n/a","http://www.zcmc.am/files/FS_ZCMC%20SA_2021_Eng.pdf",46592727259]
[]
[null,"Reporting projects' list"]
[null,"Full project name","Legal agreement reference number(s): contract, licence, lease, concession, …","Affiliated companies, start with Operator","Commodities (one commodity/row)","Status","Production (volume)","Unit","Production (value)","Currency"]
[null,"SHATV-29/232","ՊՎ-232 ","“Zangezur Copper-Molybdenum Combine“ CJSC","Copper (2603)","Production",{"$f":"222905-222905*8%","v":205072.6},"Tonnes",65096788249.422997,"AMD"]
[null,"SHATV-29/232","ՊՎ-232 ","“Zangezur Copper-Molybdenum Combine“ CJSC","Molybdenum (2613)","Production",{"$f":"8494-8494*8%","v":7814.48},"Tonnes",15703426230.107002,"AMD"]
[null,"SHATV-29/232","ՊՎ-232 ","“Zangezur Copper-Molybdenum Combine“ CJSC","Ferro, alloys, manganese (7202)","Production",8441.77,"Tonnes",41797758738.480965,"AMD"]
[null,"SHATV-29/376 ","ՊՎ-376 ","\"Teghout\" LLC","Copper (2603)","Production",84983,"Tonnes",40615139344.021156,"AMD"]
[null,"SHATV-29/376 ","ՊՎ-376 ","\"Teghout\" LLC","Molybdenum (2613)","Production",1252,"Tonnes",3981847141.6804399,"AMD"]
[null,"SHATV-29/183","ՊՎ-183 ","\"Chaarat Kapan\" CJSC","Copper (2603)","Production",14119,"Tonnes",35423330750,"AMD"]
[null,"SHATV-29/183","ՊՎ-183 ","\"Chaarat Kapan\" CJSC","Zinc (2608)","Production",10622,"Tonnes",8122000000,"AMD"]
[null,"SHATV-29/183","ՊՎ-183 ","\"Chaarat Kapan\" CJSC","Gold (7108)","Production",6179,"Tonnes",12720726773,"AMD"]
[null,"SHATV-29/311","ՊՎ-311 ","\"Agarak Copper Molybdenum Combine\" CJSC","Copper (2603)","Production",52044,"Tonnes",18786213487,"AMD"]
[null,"SHATV-29/311","ՊՎ-311 ","\"Agarak Copper Molybdenum Combine\" CJSC","Molybdenum (2613)","Production",817,"Tonnes",2306943344,"AMD"]
[null,"SHATV-29/103","ՊՎ-103 ","\"Akhtala Mining and Processing Enterprise\" CJSC","Copper (2603)","Production",{"$f":"10648-10648*8%","v":9796.16},"Tonnes",8373235237,"AMD"]
[null,"SHATV-29/293","ՊՎ-293","\"Lichkvaz\" LLC","Copper (2603)","Production",4318,"Tonnes",1779354939,"AMD"]
[null,"SHATV-29/293","ՊՎ-293","\"Lichkvaz\" LLC","Gold (7108)","Production",3705,"Tonnes",1726385665,"AMD"]
[null,"SHATV-29/189","ՊՎ-189","Geopromining Gold LLC","Gold (7108)","Production",2.09,"Tonnes",44709873082,"AMD"]
[null,"SHATV-29/057  ","ՊՎ-057","Meghradzor Gold LLC","Gold (7108)","Production",4132,"Tonnes",1670512398,"AMD"]
[null,"SHAT-29/544","P-544 ","\"Geghi Gold\" LLC"]
[null,"SHAT-29/515","ՊՎ-515 ","\"Baktek Eco\" LTD"]
[null,"SHAT-29/547","ՊՎ-547 ","\"Gharagyulyanner\" CJSC"]
[null,"SHATV-29/514","ՊՎ-514 ","\"AT-Metals\" LLC"]
[null,"SHAT-29/459","ՊՎ-459 ","\"Tatstone\" LLC"]
[null,"SHAT-29/371","ՊՎ-371 ","\"Vayk Gold\" LLC"]
[null,"SHATV-29/093","ՊՎ-093 ","\"Sagamar\" CJSC"]
[null,"SHAT-29/366","ՊՎ-366 ","\"Assat\" LLC"]
[null,"SHATV-29/094","ՊՎ-094 ","\"Ler-Ex\" LLC"]
[null,"SHATV-29/245","ՊՎ-245 ","\"Lydian Armenia\" LLC"]
[null,"SHATV-29/239","ՊՎ-239 ","\"Vardani Zartonk\" LLC"]
[null,"SHATV-29/425","ՊՎ-425 ","\"Active Lernagorts\" LLC"]
[null,"SHATV-29/169","ՊՎ-169 ","\"Fortune Resources\" LLC"]
[null,"SHATV-29/089","ՊՎ-089","\"Paramount Gold Mining\" CJSC"]
[null,"SHATV-29/213","ՊՎ-213 ","\"Multi Group Concern\" LLC"]
[null,"SHAT-29/174 ","ՊՎ-174 ","\"Molibdeni Ashkharh\" LLC"]
[]
[null,"Add new rows as necessary, right click the row number to the left and select \"Insert\"",null,null,null,null,null,"<Select unit>"]
[]
[]
[null,"For the latest version of Summary data templates, see https://eiti.org/summary-data-template"]
[null,"Give us your feedback or report a conflict in the data! Write to us at  data@eiti.org"]
[]
[null,"EITI International Secretariat"]
[null,"Phone: +47 222 00 800      E-mail: secretariat@eiti.org      Twitter: @EITIorg      www.eiti.org"]
[null,"Address: Rådhusgata 26, 0151 Oslo, Norway      P.O. Box: Postboks 340 Sentrum, 0101 Oslo, Norway"]

{"sheet":"Part 4 - Government revenues","index":4,"n_rows":82,"n_cols":14,"rows_kept":82,"cut":false,"hidden":false,"merged":[[12,5,12,13],[13,5,13,13],[14,5,14,13],[17,12,17,13],[7,5,7,13],[8,5,8,13],[9,5,9,13],[10,5,10,13],[11,5,11,13],[19,5,19,10],[15,5,15,13],[30,15,30,20],[18,12,18,13],[26,12,26,13],[27,12,27,13],[20,12,20,13],[21,12,25,13],[17,5,17,10]]}
[]
[]
[null,null,null,null,null,null,null,null,null,null,null,null,null,"Summary data template"]
[null,null,null,null,null,null,null,null,null,null,null,null,null,{"$f":"Introduction!G4","v":"YYYY-MM-DD"}]
[]
[]
[]
[null,null,null,null,null,"Part 4 (Government revenues) contains comprehensive data on government revenues per revenue stream, according to GFSM classification."]
[null,null,null,null,null,"How to complete this sheet:"]
[null,null,null,null,null,"1. Enter the name of all government Revenue streams for the extractive sectors, including revenues that fall below agreed materiality thresholds (one row should be used for each individual revenue stream and individual governmant entity)"]
[null,null,null,null,null,"2. Enter the name of the receiving Government entity (choose using the dropdown list. It will appear there since you have already entered the government entitiy in Part 3)."]
[null,null,null,null,null,"3.Choose the Sector and the GFS Classification this revenue applies to. Use the guidance provided in the GFS Framework for EITI reporting. If a revenue stream cannot be disaggregated by sector, chose \"Other\"."]
[null,null,null,null,null,"4. In the Revenue value column, enter total figure of each revenue stream as disclosed by government, including revenues that were not reconciled."]
[null,null,null,null,null," Remember: Governments receipts from companies on behalf of their employees should be excluded (e.g personal income tax PAYE, employee social security contributions, withholding tax) because they are not considered payments from companies to government."]
[null,null,null,null,null,"5. If there are any payments which are in the EITI Report, but cannot be matched with the GFS categories, please list them in the box below called \"Additional information\"."]
[null,null,null,null,null,"If you have any questions, please contact data@eiti.org"]
[]
[null,null,null,null,null,"Total government revenues from extractive sector (using GFS)",null,null,null,null,null,null,"GFS Framework for EITI Reporting"]
[null,null,null,null,null,null,null,null,null,null,null,null,"EITI Requirement 5.1.b: Revenue classification"]
[null,null,null,null,null,"EITI Requirement 4.1.d: Full government disclosure"]
[null,"GFS Level 1","GFS Level 2","GFS Level 3","GFS Level 4","GFS Classification","Sector","Revenue stream name","Government entity","Revenue value","Currency",null,"What is GFS?"]
[null,{"$f":"IFERROR(VLOOKUP(Government_revenues_table[[#This Row],[GFS Classification]],Table6_GFS_codes_classification[],COLUMNS($F:F)+3,FALSE),\"Do not enter data\")","v":"Other revenue (14E)"},{"$f":"IFERROR(VLOOKUP(Government_revenues_table[[#This Row],[GFS Classification]],Table6_GFS_codes_classification[],COLUMNS($F:G)+3,FALSE),\"Do not enter data\")","v":"Property income (141E)"},{"$f":"IFERROR(VLOOKUP(Government_revenues_table[[#This Row],[GFS Classification]],Table6_GFS_codes_classification[],COLUMNS($F:H)+3,FALSE),\"Do not enter data\")","v":"Rent (1415E)"},{"$f":"IFERROR(VLOOKUP(Government_revenues_table[[#This Row],[GFS Classification]],Table6_GFS_codes_classification[],COLUMNS($F:I)+3,FALSE),\"Do not enter data\")","v":"Royalties (1415E1)"},"Royalties (1415E1)","Mining","Mining Royalties","Tax Revenue Authority",66024636998,"AMD",null,"GFS, or Government Finance Statistics, is an international framework for categorising revenue streams so they are comparable across countries and time-periods. See full framework example below. The framework used below has been developped by the IMF and EITI International Secretariat.\nThe letter E in the GFS codes means that these are codes only used for revenues from extractives companies. The digits to the right were specifically designed for extractive sector companies."]
[null,{"$f":"IFERROR(VLOOKUP(Government_revenues_table[[#This Row],[GFS Classification]],Table6_GFS_codes_classification[],COLUMNS($F:F)+3,FALSE),\"Do not enter data\")","v":"Taxes (11E)"},{"$f":"IFERROR(VLOOKUP(Government_revenues_table[[#This Row],[GFS Classification]],Table6_GFS_codes_classification[],COLUMNS($F:G)+3,FALSE),\"Do not enter data\")","v":"Taxes on income, profits and capital gains (111E)"},{"$f":"IFERROR(VLOOKUP(Government_revenues_table[[#This Row],[GFS Classification]],Table6_GFS_codes_classification[],COLUMNS($F:H)+3,FALSE),\"Do not enter data\")","v":"Ordinary taxes on income, profits and capital gains (1112E1)"},{"$f":"IFERROR(VLOOKUP(Government_revenues_table[[#This Row],[GFS Classification]],Table6_GFS_codes_classification[],COLUMNS($F:I)+3,FALSE),\"Do not enter data\")","v":"Ordinary taxes on income, profits and capital gains (1112E1)"},"Ordinary taxes on income, profits and capital gains (1112E1)","Mining","Profit tax","Tax Revenue Authority",37472651360,"AMD"]
[null,{"$f":"IFERROR(VLOOKUP(Government_revenues_table[[#This Row],[GFS Classification]],Table6_GFS_codes_classification[],COLUMNS($F:F)+3,FALSE),\"Do not enter data\")","v":"Taxes (11E)"},{"$f":"IFERROR(VLOOKUP(Government_revenues_table[[#This Row],[GFS Classification]],Table6_GFS_codes_classification[],COLUMNS($F:G)+3,FALSE),\"Do not enter data\")","v":"Taxes on goods and services (114E)"},{"$f":"IFERROR(VLOOKUP(Government_revenues_table[[#This Row],[GFS Classification]],Table6_GFS_codes_classification[],COLUMNS($F:H)+3,FALSE),\"Do not enter data\")","v":"Taxes on use of goods/permission to use goods or perform activities (1145E)"},{"$f":"IFERROR(VLOOKUP(Government_revenues_table[[#This Row],[GFS Classification]],Table6_GFS_codes_classification[],COLUMNS($F:I)+3,FALSE),\"Do not enter data\")","v":"Licence fees (114521E)"},"Licence fees (114521E)","Mining","State duty for mining permit","Tax Revenue Authority",21923360000,"AMD"]
[null,{"$f":"IFERROR(VLOOKUP(Government_revenues_table[[#This Row],[GFS Classification]],Table6_GFS_codes_classification[],COLUMNS($F:F)+3,FALSE),\"Do not enter data\")","v":"Taxes (11E)"},{"$f":"IFERROR(VLOOKUP(Government_revenues_table[[#This Row],[GFS Classification]],Table6_GFS_codes_classification[],COLUMNS($F:G)+3,FALSE),\"Do not enter data\")","v":"Taxes on income, profits and capital gains (111E)"},{"$f":"IFERROR(VLOOKUP(Government_revenues_table[[#This Row],[GFS Classification]],Table6_GFS_codes_classification[],COLUMNS($F:H)+3,FALSE),\"Do not enter data\")","v":"Ordinary taxes on income, profits and capital gains (1112E1)"},{"$f":"IFERROR(VLOOKUP(Government_revenues_table[[#This Row],[GFS Classification]],Table6_GFS_codes_classification[],COLUMNS($F:I)+3,FALSE),\"Do not enter data\")","v":"Ordinary taxes on income, profits and capital gains (1112E1)"},"Ordinary taxes on income, profits and capital gains (1112E1)","Mining","Income tax","Tax Revenue Authority",16628212997,"AMD"]
[null,{"$f":"IFERROR(VLOOKUP(Government_revenues_table[[#This Row],[GFS Classification]],Table6_GFS_codes_classification[],COLUMNS($F:F)+3,FALSE),\"Do not enter data\")","v":"Taxes (11E)"},{"$f":"IFERROR(VLOOKUP(Government_revenues_table[[#This Row],[GFS Classification]],Table6_GFS_codes_classification[],COLUMNS($F:G)+3,FALSE),\"Do not enter data\")","v":"Taxes on goods and services (114E)"},{"$f":"IFERROR(VLOOKUP(Government_revenues_table[[#This Row],[GFS Classification]],Table6_GFS_codes_classification[],COLUMNS($F:H)+3,FALSE),\"Do not enter data\")","v":"General taxes on goods and services (VAT, sales tax, turnover tax) (1141E)"},{"$f":"IFERROR(VLOOKUP(Government_revenues_table[[#This Row],[GFS Classification]],Table6_GFS_codes_classification[],COLUMNS($F:I)+3,FALSE),\"Do not enter data\")","v":"General taxes on goods and services (VAT, sales tax, turnover tax) (1141E)"},"General taxes on goods and services (VAT, sales tax, turnover tax) (1141E)","Mining","VAT","Tax Revenue Authority",1793320762,"AMD"]
[null,{"$f":"IFERROR(VLOOKUP(Government_revenues_table[[#This Row],[GFS Classification]],Table6_GFS_codes_classification[],COLUMNS($F:F)+3,FALSE),\"Do not enter data\")","v":"Taxes (11E)"},{"$f":"IFERROR(VLOOKUP(Government_revenues_table[[#This Row],[GFS Classification]],Table6_GFS_codes_classification[],COLUMNS($F:G)+3,FALSE),\"Do not enter data\")","v":"Taxes on international trade and transactions (115E)"},{"$f":"IFERROR(VLOOKUP(Government_revenues_table[[#This Row],[GFS Classification]],Table6_GFS_codes_classification[],COLUMNS($F:H)+3,FALSE),\"Do not enter data\")","v":"Customs and other import duties (1151E)"},{"$f":"IFERROR(VLOOKUP(Government_revenues_table[[#This Row],[GFS Classification]],Table6_GFS_codes_classification[],COLUMNS($F:I)+3,FALSE),\"Do not enter data\")","v":"Customs and other import duties (1151E)"},"Customs and other import duties (1151E)","Mining","Custom duties","Tax Revenue Authority",1229219056,"AMD",null,"For more guidance, please visit https://eiti.org/summary-data-template"]
[null,{"$f":"IFERROR(VLOOKUP(Government_revenues_table[[#This Row],[GFS Classification]],Table6_GFS_codes_classification[],COLUMNS($F:F)+3,FALSE),\"Do not enter data\")","v":"Other revenue (14E)"},{"$f":"IFERROR(VLOOKUP(Government_revenues_table[[#This Row],[GFS Classification]],Table6_GFS_codes_classification[],COLUMNS($F:G)+3,FALSE),\"Do not enter data\")","v":"Property income (141E)"},{"$f":"IFERROR(VLOOKUP(Government_revenues_table[[#This Row],[GFS Classification]],Table6_GFS_codes_classification[],COLUMNS($F:H)+3,FALSE),\"Do not enter data\")","v":"Rent (1415E)"},{"$f":"IFERROR(VLOOKUP(Government_revenues_table[[#This Row],[GFS Classification]],Table6_GFS_codes_classification[],COLUMNS($F:I)+3,FALSE),\"Do not enter data\")","v":"Other rent payments (1415E5)"},"Other rent payments (1415E5)","Mining","Rent fee","Ministry of Territorial Administration and Development",1116376000,"AMD",null,"or, https://www.imf.org/external/np/sta/gfsm/"]
[null,{"$f":"IFERROR(VLOOKUP(Government_revenues_table[[#This Row],[GFS Classification]],Table6_GFS_codes_classification[],COLUMNS($F:F)+3,FALSE),\"Do not enter data\")","v":"Other revenue (14E)"},{"$f":"IFERROR(VLOOKUP(Government_revenues_table[[#This Row],[GFS Classification]],Table6_GFS_codes_classification[],COLUMNS($F:G)+3,FALSE),\"Do not enter data\")","v":"Property income (141E)"},{"$f":"IFERROR(VLOOKUP(Government_revenues_table[[#This Row],[GFS Classification]],Table6_GFS_codes_classification[],COLUMNS($F:H)+3,FALSE),\"Do not enter data\")","v":"Rent (1415E)"},{"$f":"IFERROR(VLOOKUP(Government_revenues_table[[#This Row],[GFS Classification]],Table6_GFS_codes_classification[],COLUMNS($F:I)+3,FALSE),\"Do not enter data\")","v":"Compulsory transfers to government (infrastructure and other) (1415E4)"},"Compulsory transfers to government (infrastructure and other) (1415E4)","Mining","Social obligations envisaged by the Contract ","Ministry of Territorial Administration and Development",806758000,"AMD"]
[null,{"$f":"IFERROR(VLOOKUP(Government_revenues_table[[#This Row],[GFS Classification]],Table6_GFS_codes_classification[],COLUMNS($F:F)+3,FALSE),\"Do not enter data\")","v":"Taxes (11E)"},{"$f":"IFERROR(VLOOKUP(Government_revenues_table[[#This Row],[GFS Classification]],Table6_GFS_codes_classification[],COLUMNS($F:G)+3,FALSE),\"Do not enter data\")","v":"Taxes on goods and services (114E)"},{"$f":"IFERROR(VLOOKUP(Government_revenues_table[[#This Row],[GFS Classification]],Table6_GFS_codes_classification[],COLUMNS($F:H)+3,FALSE),\"Do not enter data\")","v":"Taxes on use of goods/permission to use goods or perform activities (1145E)"},{"$f":"IFERROR(VLOOKUP(Government_revenues_table[[#This Row],[GFS Classification]],Table6_GFS_codes_classification[],COLUMNS($F:I)+3,FALSE),\"Do not enter data\")","v":"Emission and pollution taxes (114522E)"},"Emission and pollution taxes (114522E)","Mining","Environmental payments (taxes)","Tax Revenue Authority",536832000,"AMD"]
[null,{"$f":"IFERROR(VLOOKUP(Government_revenues_table[[#This Row],[GFS Classification]],Table6_GFS_codes_classification[],COLUMNS($F:F)+3,FALSE),\"Do not enter data\")","v":"Other revenue (14E)"},{"$f":"IFERROR(VLOOKUP(Government_revenues_table[[#This Row],[GFS Classification]],Table6_GFS_codes_classification[],COLUMNS($F:G)+3,FALSE),\"Do not enter data\")","v":"Property income (141E)"},{"$f":"IFERROR(VLOOKUP(Government_revenues_table[[#This Row],[GFS Classification]],Table6_GFS_codes_classification[],COLUMNS($F:H)+3,FALSE),\"Do not enter data\")","v":"Rent (1415E)"},{"$f":"IFERROR(VLOOKUP(Government_revenues_table[[#This Row],[GFS Classification]],Table6_GFS_codes_classification[],COLUMNS($F:I)+3,FALSE),\"Do not enter data\")","v":"Compulsory transfers to government (infrastructure and other) (1415E4)"},"Compulsory transfers to government (infrastructure and other) (1415E4)","Mining","Contribution payment to the Environmental protection fund ","Ministry of Environment",291724385.60000002,"AMD"]
[null,{"$f":"IFERROR(VLOOKUP(Government_revenues_table[[#This Row],[GFS Classification]],Table6_GFS_codes_classification[],COLUMNS($F:F)+3,FALSE),\"Do not enter data\")","v":"Taxes (11E)"},{"$f":"IFERROR(VLOOKUP(Government_revenues_table[[#This Row],[GFS Classification]],Table6_GFS_codes_classification[],COLUMNS($F:G)+3,FALSE),\"Do not enter data\")","v":"Taxes on goods and services (114E)"},{"$f":"IFERROR(VLOOKUP(Government_revenues_table[[#This Row],[GFS Classification]],Table6_GFS_codes_classification[],COLUMNS($F:H)+3,FALSE),\"Do not enter data\")","v":"Taxes on use of goods/permission to use goods or perform activities (1145E)"},{"$f":"IFERROR(VLOOKUP(Government_revenues_table[[#This Row],[GFS Classification]],Table6_GFS_codes_classification[],COLUMNS($F:I)+3,FALSE),\"Do not enter data\")","v":"Licence fees (114521E)"},"Licence fees (114521E)","Mining","State duty for mining permit","Tax Revenue Authority",190000000,"AMD"]
[null,{"$f":"IFERROR(VLOOKUP(Government_revenues_table[[#This Row],[GFS Classification]],Table6_GFS_codes_classification[],COLUMNS($F:F)+3,FALSE),\"Do not enter data\")","v":"Taxes (11E)"},{"$f":"IFERROR(VLOOKUP(Government_revenues_table[[#This Row],[GFS Classification]],Table6_GFS_codes_classification[],COLUMNS($F:G)+3,FALSE),\"Do not enter data\")","v":"Taxes on property (113E)"},{"$f":"IFERROR(VLOOKUP(Government_revenues_table[[#This Row],[GFS Classification]],Table6_GFS_codes_classification[],COLUMNS($F:H)+3,FALSE),\"Do not enter data\")","v":"Taxes on property (113E)"},{"$f":"IFERROR(VLOOKUP(Government_revenues_table[[#This Row],[GFS Classification]],Table6_GFS_codes_classification[],COLUMNS($F:I)+3,FALSE),\"Do not enter data\")","v":"Taxes on property (113E)"},"Taxes on property (113E)","Mining","Real estate tax","Ministry of Territorial Administration and Development",72471595,"AMD"]
[null,{"$f":"IFERROR(VLOOKUP(Government_revenues_table[[#This Row],[GFS Classification]],Table6_GFS_codes_classification[],COLUMNS($F:F)+3,FALSE),\"Do not enter data\")","v":"Taxes (11E)"},{"$f":"IFERROR(VLOOKUP(Government_revenues_table[[#This Row],[GFS Classification]],Table6_GFS_codes_classification[],COLUMNS($F:G)+3,FALSE),\"Do not enter data\")","v":"Taxes on goods and services (114E)"},{"$f":"IFERROR(VLOOKUP(Government_revenues_table[[#This Row],[GFS Classification]],Table6_GFS_codes_classification[],COLUMNS($F:H)+3,FALSE),\"Do not enter data\")","v":"Taxes on use of goods/permission to use goods or perform activities (1145E)"},{"$f":"IFERROR(VLOOKUP(Government_revenues_table[[#This Row],[GFS Classification]],Table6_GFS_codes_classification[],COLUMNS($F:I)+3,FALSE),\"Do not enter data\")","v":"Emission and pollution taxes (114522E)"},"Emission and pollution taxes (114522E)","Mining","Nature utilisation fee","Tax Revenue Authority",57467088,"AMD"]
[null,{"$f":"IFERROR(VLOOKUP(Government_revenues_table[[#This Row],[GFS Classification]],Table6_GFS_codes_classification[],COLUMNS($F:F)+3,FALSE),\"Do not enter data\")","v":"Taxes (11E)"},{"$f":"IFERROR(VLOOKUP(Government_revenues_table[[#This Row],[GFS Classification]],Table6_GFS_codes_classification[],COLUMNS($F:G)+3,FALSE),\"Do not enter data\")","v":"Taxes on property (113E)"},{"$f":"IFERROR(VLOOKUP(Government_revenues_table[[#This Row],[GFS Classification]],Table6_GFS_codes_classification[],COLUMNS($F:H)+3,FALSE),\"Do not enter data\")","v":"Taxes on property (113E)"},{"$f":"IFERROR(VLOOKUP(Government_revenues_table[[#This Row],[GFS Classification]],Table6_GFS_codes_classification[],COLUMNS($F:I)+3,FALSE),\"Do not enter data\")","v":"Taxes on property (113E)"},"Taxes on property (113E)","Mining","Vehicle tax","Ministry of Territorial Administration and Development",36886919,"AMD"]
[null,{"$f":"IFERROR(VLOOKUP(Government_revenues_table[[#This Row],[GFS Classification]],Table6_GFS_codes_classification[],COLUMNS($F:F)+3,FALSE),\"Do not enter data\")","v":"Taxes (11E)"},{"$f":"IFERROR(VLOOKUP(Government_revenues_table[[#This Row],[GFS Classification]],Table6_GFS_codes_classification[],COLUMNS($F:G)+3,FALSE),\"Do not enter data\")","v":"Taxes on goods and services (114E)"},{"$f":"IFERROR(VLOOKUP(Government_revenues_table[[#This Row],[GFS Classification]],Table6_GFS_codes_classification[],COLUMNS($F:H)+3,FALSE),\"Do not enter data\")","v":"Taxes on use of goods/permission to use goods or perform activities (1145E)"},{"$f":"IFERROR(VLOOKUP(Government_revenues_table[[#This Row],[GFS Classification]],Table6_GFS_codes_classification[],COLUMNS($F:I)+3,FALSE),\"Do not enter data\")","v":"Emission and pollution taxes (114522E)"},"Emission and pollution taxes (114522E)","Mining","Monitoring payment","Ministry of Environment",28158864.5,"AMD"]
[null,{"$f":"IFERROR(VLOOKUP(Government_revenues_table[[#This Row],[GFS Classification]],Table6_GFS_codes_classification[],COLUMNS($F:F)+3,FALSE),\"Do not enter data\")","v":"Taxes (11E)"},{"$f":"IFERROR(VLOOKUP(Government_revenues_table[[#This Row],[GFS Classification]],Table6_GFS_codes_classification[],COLUMNS($F:G)+3,FALSE),\"Do not enter data\")","v":"Taxes on goods and services (114E)"},{"$f":"IFERROR(VLOOKUP(Government_revenues_table[[#This Row],[GFS Classification]],Table6_GFS_codes_classification[],COLUMNS($F:H)+3,FALSE),\"Do not enter data\")","v":"Taxes on use of goods/permission to use goods or perform activities (1145E)"},{"$f":"IFERROR(VLOOKUP(Government_revenues_table[[#This Row],[GFS Classification]],Table6_GFS_codes_classification[],COLUMNS($F:I)+3,FALSE),\"Do not enter data\")","v":"Emission and pollution taxes (114522E)"},"Emission and pollution taxes (114522E)","Mining","Environmental fees for goods imported from EEU member states","Tax Revenue Authority",17623368,"AMD"]
[null,{"$f":"IFERROR(VLOOKUP(Government_revenues_table[[#This Row],[GFS Classification]],Table6_GFS_codes_classification[],COLUMNS($F:F)+3,FALSE),\"Do not enter data\")","v":"Taxes (11E)"},{"$f":"IFERROR(VLOOKUP(Government_revenues_table[[#This Row],[GFS Classification]],Table6_GFS_codes_classification[],COLUMNS($F:G)+3,FALSE),\"Do not enter data\")","v":"Taxes on goods and services (114E)"},{"$f":"IFERROR(VLOOKUP(Government_revenues_table[[#This Row],[GFS Classification]],Table6_GFS_codes_classification[],COLUMNS($F:H)+3,FALSE),\"Do not enter data\")","v":"Taxes on use of goods/permission to use goods or perform activities (1145E)"},{"$f":"IFERROR(VLOOKUP(Government_revenues_table[[#This Row],[GFS Classification]],Table6_GFS_codes_classification[],COLUMNS($F:I)+3,FALSE),\"Do not enter data\")","v":"Emission and pollution taxes (114522E)"},"Emission and pollution taxes (114522E)","Mining","Environmental fees for goods imported from non EEU member states","Tax Revenue Authority",6125793,"AMD"]
[null,{"$f":"IFERROR(VLOOKUP(Government_revenues_table[[#This Row],[GFS Classification]],Table6_GFS_codes_classification[],COLUMNS($F:F)+3,FALSE),\"Do not enter data\")","v":"Taxes (11E)"},{"$f":"IFERROR(VLOOKUP(Government_revenues_table[[#This Row],[GFS Classification]],Table6_GFS_codes_classification[],COLUMNS($F:G)+3,FALSE),\"Do not enter data\")","v":"Taxes on goods and services (114E)"},{"$f":"IFERROR(VLOOKUP(Government_revenues_table[[#This Row],[GFS Classification]],Table6_GFS_codes_classification[],COLUMNS($F:H)+3,FALSE),\"Do not enter data\")","v":"Taxes on use of goods/permission to use goods or perform activities (1145E)"},{"$f":"IFERROR(VLOOKUP(Government_revenues_table[[#This Row],[GFS Classification]],Table6_GFS_codes_classification[],COLUMNS($F:I)+3,FALSE),\"Do not enter data\")","v":"Emission and pollution taxes (114522E)"},"Emission and pollution taxes (114522E)","Mining","Environmental assessment fee","Ministry of Environment",1500000,"AMD"]
[null,{"$f":"IFERROR(VLOOKUP(Government_revenues_table[[#This Row],[GFS Classification]],Table6_GFS_codes_classification[],COLUMNS($F:F)+3,FALSE),\"Do not enter data\")","v":"Taxes (11E)"},{"$f":"IFERROR(VLOOKUP(Government_revenues_table[[#This Row],[GFS Classification]],Table6_GFS_codes_classification[],COLUMNS($F:G)+3,FALSE),\"Do not enter data\")","v":"Taxes on goods and services (114E)"},{"$f":"IFERROR(VLOOKUP(Government_revenues_table[[#This Row],[GFS Classification]],Table6_GFS_codes_classification[],COLUMNS($F:H)+3,FALSE),\"Do not enter data\")","v":"Excise taxes (1142E)"},{"$f":"IFERROR(VLOOKUP(Government_revenues_table[[#This Row],[GFS Classification]],Table6_GFS_codes_classification[],COLUMNS($F:I)+3,FALSE),\"Do not enter data\")","v":"Excise taxes (1142E)"},"Excise taxes (1142E)","Mining","Excise taxes","Tax Revenue Authority",0,"AMD"]
[null,{"$f":"IFERROR(VLOOKUP(Government_revenues_table[[#This Row],[GFS Classification]],Table6_GFS_codes_classification[],COLUMNS($F:F)+3,FALSE),\"Do not enter data\")","v":"Taxes (11E)"},{"$f":"IFERROR(VLOOKUP(Government_revenues_table[[#This Row],[GFS Classification]],Table6_GFS_codes_classification[],COLUMNS($F:G)+3,FALSE),\"Do not enter data\")","v":"Other taxes payable by natural resource companies (116E)"},{"$f":"IFERROR(VLOOKUP(Government_revenues_table[[#This Row],[GFS Classification]],Table6_GFS_codes_classification[],COLUMNS($F:H)+3,FALSE),\"Do not enter data\")","v":"Other taxes payable by natural resource companies (116E)"},{"$f":"IFERROR(VLOOKUP(Government_revenues_table[[#This Row],[GFS Classification]],Table6_GFS_codes_classification[],COLUMNS($F:I)+3,FALSE),\"Do not enter data\")","v":"Other taxes payable by natural resource companies (116E)"},"Other taxes payable by natural resource companies (116E)","Mining","Land disposal","Ministry of Territorial Administration and Development",0,"AMD"]
[null,{"$f":"IFERROR(VLOOKUP(Government_revenues_table[[#This Row],[GFS Classification]],Table6_GFS_codes_classification[],COLUMNS($F:F)+3,FALSE),\"Do not enter data\")","v":"Taxes (11E)"},{"$f":"IFERROR(VLOOKUP(Government_revenues_table[[#This Row],[GFS Classification]],Table6_GFS_codes_classification[],COLUMNS($F:G)+3,FALSE),\"Do not enter data\")","v":"Taxes on property (113E)"},{"$f":"IFERROR(VLOOKUP(Government_revenues_table[[#This Row],[GFS Classification]],Table6_GFS_codes_classification[],COLUMNS($F:H)+3,FALSE),\"Do not enter data\")","v":"Taxes on property (113E)"},{"$f":"IFERROR(VLOOKUP(Government_revenues_table[[#This Row],[GFS Classification]],Table6_GFS_codes_classification[],COLUMNS($F:I)+3,FALSE),\"Do not enter data\")","v":"Taxes on property (113E)"},"Taxes on property (113E)","Mining","Land tax","Ministry of Territorial Administration and Development",0,"AMD"]
[null,{"$f":"IFERROR(VLOOKUP(Government_revenues_table[[#This Row],[GFS Classification]],Table6_GFS_codes_classification[],COLUMNS($F:F)+3,FALSE),\"Do not enter data\")","v":"Other revenue (14E)"},{"$f":"IFERROR(VLOOKUP(Government_revenues_table[[#This Row],[GFS Classification]],Table6_GFS_codes_classification[],COLUMNS($F:G)+3,FALSE),\"Do not enter data\")","v":"Fines, penalties, and forfeits (143E)"},{"$f":"IFERROR(VLOOKUP(Government_revenues_table[[#This Row],[GFS Classification]],Table6_GFS_codes_classification[],COLUMNS($F:H)+3,FALSE),\"Do not enter data\")","v":"Fines, penalties, and forfeits (143E)"},{"$f":"IFERROR(VLOOKUP(Government_revenues_table[[#This Row],[GFS Classification]],Table6_GFS_codes_classification[],COLUMNS($F:I)+3,FALSE),\"Do not enter data\")","v":"Fines, penalties, and forfeits (143E)"},"Fines, penalties, and forfeits (143E)","Mining","Penalties","Ministry of Environment",0,"AMD"]
[null,{"$f":"IFERROR(VLOOKUP(Government_revenues_table[[#This Row],[GFS Classification]],Table6_GFS_codes_classification[],COLUMNS($F:F)+3,FALSE),\"Do not enter data\")","v":"Taxes (11E)"},{"$f":"IFERROR(VLOOKUP(Government_revenues_table[[#This Row],[GFS Classification]],Table6_GFS_codes_classification[],COLUMNS($F:G)+3,FALSE),\"Do not enter data\")","v":"Taxes on goods and services (114E)"},{"$f":"IFERROR(VLOOKUP(Government_revenues_table[[#This Row],[GFS Classification]],Table6_GFS_codes_classification[],COLUMNS($F:H)+3,FALSE),\"Do not enter data\")","v":"General taxes on goods and services (VAT, sales tax, turnover tax) (1141E)"},{"$f":"IFERROR(VLOOKUP(Government_revenues_table[[#This Row],[GFS Classification]],Table6_GFS_codes_classification[],COLUMNS($F:I)+3,FALSE),\"Do not enter data\")","v":"General taxes on goods and services (VAT, sales tax, turnover tax) (1141E)"},"General taxes on goods and services (VAT, sales tax, turnover tax) (1141E)","Mining","Environmental payments (taxes)","Tax Revenue Authority",0,"AMD"]
[null,{"$f":"IFERROR(VLOOKUP(Government_revenues_table[[#This Row],[GFS Classification]],Table6_GFS_codes_classification[],COLUMNS($F:F)+3,FALSE),\"Do not enter data\")","v":"Taxes (11E)"},{"$f":"IFERROR(VLOOKUP(Government_revenues_table[[#This Row],[GFS Classification]],Table6_GFS_codes_classification[],COLUMNS($F:G)+3,FALSE),\"Do not enter data\")","v":"Taxes on goods and services (114E)"},{"$f":"IFERROR(VLOOKUP(Government_revenues_table[[#This Row],[GFS Classification]],Table6_GFS_codes_classification[],COLUMNS($F:H)+3,FALSE),\"Do not enter data\")","v":"Excise taxes (1142E)"},{"$f":"IFERROR(VLOOKUP(Government_revenues_table[[#This Row],[GFS Classification]],Table6_GFS_codes_classification[],COLUMNS($F:I)+3,FALSE),\"Do not enter data\")","v":"Excise taxes (1142E)"},"Excise taxes (1142E)","Mining","Import Excise taxes","Tax Revenue Authority",null,"AMD"]
[null,{"$f":"IFERROR(VLOOKUP(Government_revenues_table[[#This Row],[GFS Classification]],Table6_GFS_codes_classification[],COLUMNS($F:F)+3,FALSE),\"Do not enter data\")","v":"Taxes (11E)"},{"$f":"IFERROR(VLOOKUP(Government_revenues_table[[#This Row],[GFS Classification]],Table6_GFS_codes_classification[],COLUMNS($F:G)+3,FALSE),\"Do not enter data\")","v":"Taxes on income, profits and capital gains (111E)"},{"$f":"IFERROR(VLOOKUP(Government_revenues_table[[#This Row],[GFS Classification]],Table6_GFS_codes_classification[],COLUMNS($F:H)+3,FALSE),\"Do not enter data\")","v":"Ordinary taxes on income, profits and capital gains (1112E1)"},{"$f":"IFERROR(VLOOKUP(Government_revenues_table[[#This Row],[GFS Classification]],Table6_GFS_codes_classification[],COLUMNS($F:I)+3,FALSE),\"Do not enter data\")","v":"Ordinary taxes on income, profits and capital gains (1112E1)"},"Ordinary taxes on income, profits and capital gains (1112E1)","Mining","Profit tax for non-residents","Tax Revenue Authority",null,"AMD"]
[null,{"$f":"IFERROR(VLOOKUP(Government_revenues_table[[#This Row],[GFS Classification]],Table6_GFS_codes_classification[],COLUMNS($F:F)+3,FALSE),\"Do not enter data\")","v":"Taxes (11E)"},{"$f":"IFERROR(VLOOKUP(Government_revenues_table[[#This Row],[GFS Classification]],Table6_GFS_codes_classification[],COLUMNS($F:G)+3,FALSE),\"Do not enter data\")","v":"Taxes on property (113E)"},{"$f":"IFERROR(VLOOKUP(Government_revenues_table[[#This Row],[GFS Classification]],Table6_GFS_codes_classification[],COLUMNS($F:H)+3,FALSE),\"Do not enter data\")","v":"Taxes on property (113E)"},{"$f":"IFERROR(VLOOKUP(Government_revenues_table[[#This Row],[GFS Classification]],Table6_GFS_codes_classification[],COLUMNS($F:I)+3,FALSE),\"Do not enter data\")","v":"Taxes on property (113E)"},"Taxes on property (113E)","Mining","Property tax","Ministry of Territorial Administration and Development",null,"AMD"]
[]
[null,null,null,null,null,null,null,null,"Total in USD",{"$f":"SUMIF(Government_revenues_table[Currency],\"USD\",Government_revenues_table[Revenue value])+(IFERROR(SUMIF(Government_revenues_table[Currency],\"<>USD\",Government_revenues_table[Revenue value])/'Part 1 - About'!$E$45,0))","v":294584256.97016066}]
[]
[null,null,null,null,null,null,null,null,{"$f":"\"Total in \"&'Part 1 - About'!E44","v":"Total in AMD"},{"$f":"IF('Part 1 - About'!$E$44=\"USD\",0,SUMIF(Government_revenues_table[Currency],'Part 1 - About'!$E$44,Government_revenues_table[Revenue value]))+(IFERROR(SUMIF(Government_revenues_table[Currency],\"USD\",Government_revenues_table[Revenue value])*'Part 1 - About'!$E$45,0))","v":148233325186.10001}]
[]
[]
[]
[null,null,null,null,null,"Additional information"]
[null,null,null,null,null,"Any additional information that is not eligible for inclusion in the table above, please include below as comments."]
[]
[]
[null,null,null,null,null,"Comment 1","Please include comments here. PAYE and withholding taxes are not paid on behalf of companies and should therefore be excluded"]
[null,null,null,null,null,"Comment 2","Insert additional rows as needed. E.g., the below table covers the excluded revenues"]
[null,null,null,null,null,null,"Sector","Revenue stream name","Government entity","Revenue value","Currency"]
[]
[]
[null,null,null,null,null,null,"Total",null,null,{"$f":"SUM(J62:J63)","v":0},"USD"]
[null,null,null,null,null,"Comment 3","Please include comments here."]
[null,null,null,null,null,"Comment 4","Please include comments here."]
[null,null,null,null,null,"Comment 5","Please include comments here."]
[]
[]
[]
[]
[]
[]
[]
[]
[]
[null,null,null,null,null,"For the latest version of Summary data templates, see https://eiti.org/summary-data-template"]
[null,null,null,null,null,"Give us your feedback or report a conflict in the data! Write to us at  data@eiti.org"]
[]
[null,null,null,null,null,"EITI International Secretariat"]
[null,null,null,null,null,"Phone: +47 222 00 800      E-mail: secretariat@eiti.org      Twitter: @EITIorg      www.eiti.org"]
[null,null,null,null,null,"Address: Rådhusgata 26, 0151 Oslo, Norway      P.O. Box: Postboks 340 Sentrum, 0101 Oslo, Norway"]

{"sheet":"Part 5 - Company data","index":5,"n_rows":88,"n_cols":14,"rows_kept":88,"cut":false,"hidden":false,"merged":[]}
[]
[null,null,"Part 5 (Company data) contains company- and project-level data per revenue stream. The companies and projects are available from drop-down since the data is entered in sheet 3. "]
[null,null,"How to fill this sheet:"]
[null,null,"1. Select company name from drop-down menu"]
[null,null,"2. Select government collecting entity and payment name from drop-down menu"]
[null,null,"3. Indicate whether the payment stream is (i) levied on project and (ii) reported by project"]
[null,null,"4. Enter project information: project name, and reporting currency"]
[null,null,"5. Enter revenue value,as disclosed by government and any comments that may be applicable"]
[null,null,"If you have any questions, please contact data@eiti.org"]
[]
[null,null,"Government revenues by company and project"]
[]
[null,"EITI Requirement 4.1.c: Company payments ;  EITI Requirement 4.7: Project-level reporting"]
[null,"Sector","Company","Government entity","Revenue stream name","Levied on project (Y/N)","Reported by project (Y/N)","Project name","Reporting currency","Revenue value","Payment made in-kind (Y/N)","In-kind volume (if applicable)","Unit (if applicable)","Column1"]
[null,null,"“Agarak Copper Molybdenum Combine” CJSC","Tax Revenue Authority","Mining Royalties","Yes","Yes","SHATV-29/311","AMD",4603867473]
[null,null,"“Agarak Copper Molybdenum Combine” CJSC","Tax Revenue Authority","VAT","No","No",null,"AMD",0]
[null,null,"“Agarak Copper Molybdenum Combine” CJSC","Tax Revenue Authority","Custom duties","No","No",null,"AMD",59456646]
[null,null,"“Agarak Copper Molybdenum Combine” CJSC","Ministry of Territorial Administration and Development","Rent fee","Yes","Yes","SHATV-29/311","AMD",31723513]
[null,null,"“Agarak Copper Molybdenum Combine” CJSC","Ministry of Territorial Administration and Development","Social obligations envisaged by the Contract ","Yes","Yes","SHATV-29/311","AMD",36000000]
[null,null,"“Akhtala Mining And Processing Enterprise” CJSC","Tax Revenue Authority","Mining Royalties","Yes","Yes","SHATV-29/103","AMD",753813006]
[null,null,"“Akhtala Mining And Processing Enterprise” CJSC","Tax Revenue Authority","VAT","No","No",null,"AMD",0]
[null,null,"“Akhtala Mining And Processing Enterprise” CJSC","Tax Revenue Authority","Custom duties","No","No",null,"AMD",19931838]
[null,null,"“Akhtala Mining And Processing Enterprise” CJSC","Ministry of Territorial Administration and Development","Rent fee","Yes","Yes","SHATV-29/103","AMD",9574008]
[null,null,"“Akhtala Mining And Processing Enterprise” CJSC","Ministry of Territorial Administration and Development","Social obligations envisaged by the Contract ","Yes","Yes","SHATV-29/103","AMD",82000000]
[null,null,"“Chaarat Kapan” CJSC","Tax Revenue Authority","Mining Royalties","Yes","Yes","SHATV-29/183","AMD",2942052023]
[null,null,"“Chaarat Kapan” CJSC","Tax Revenue Authority","VAT","No","No",null,"AMD",0]
[null,null,"“Chaarat Kapan” CJSC","Tax Revenue Authority","Custom duties","No","No",null,"AMD",76683032]
[null,null,"“Chaarat Kapan” CJSC","Ministry of Territorial Administration and Development","Rent fee","Yes","Yes","SHATV-29/183","AMD",113391288]
[null,null,"“Chaarat Kapan” CJSC","Ministry of Territorial Administration and Development","Social obligations envisaged by the Contract ","Yes","Yes","SHATV-29/183","AMD",20000000]
[null,null,"“Geopromining Gold“ LLC","Tax Revenue Authority","Mining Royalties","Yes","Yes","SHATV-29/189","AMD",3623610055]
[null,null,"“Geopromining Gold“ LLC","Tax Revenue Authority","VAT","No","No",null,"AMD",0]
[null,null,"“Geopromining Gold“ LLC","Tax Revenue Authority","Custom duties","No","No",null,"AMD",236099289]
[null,null,"“Geopromining Gold“ LLC","Ministry of Territorial Administration and Development","Rent fee","Yes","Yes","SHATV-29/189","AMD",68960000]
[null,null,"“Geopromining Gold“ LLC","Ministry of Territorial Administration and Development","Social obligations envisaged by the Contract ","Yes","Yes","SHATV-29/189","AMD",50000000]
[null,null,"“Ler-Ex” LLC","Tax Revenue Authority","Mining Royalties","Yes","Yes","SHATV-29/094","AMD",0]
[null,null,"“Ler-Ex” LLC","Tax Revenue Authority","VAT","No","No",null,"AMD",182084897]
[null,null,"“Ler-Ex” LLC","Tax Revenue Authority","Custom duties","No","No",null,"AMD",0]
[null,null,"“Ler-Ex” LLC","Ministry of Territorial Administration and Development","Rent fee","Yes","Yes","SHATV-29/094","AMD",1637377]
[null,null,"“Ler-Ex” LLC","Ministry of Territorial Administration and Development","Social obligations envisaged by the Contract ","Yes","Yes","SHATV-29/094","AMD",0]
[null,null,"“Lichkvaz” LLC","Tax Revenue Authority","Mining Royalties","Yes","Yes","SHATV-29/293","AMD",1297164729]
[null,null,"“Lichkvaz” LLC","Tax Revenue Authority","VAT","No","No",null,"AMD",1551404253]
[null,null,"“Lichkvaz” LLC","Tax Revenue Authority","Custom duties","No","No",null,"AMD",11491766]
[null,null,"“Lichkvaz” LLC","Ministry of Territorial Administration and Development","Rent fee","Yes","Yes","SHATV-29/293","AMD",3651456]
[null,null,"“Lichkvaz” LLC","Ministry of Territorial Administration and Development","Social obligations envisaged by the Contract ","Yes","Yes","SHATV-29/293","AMD",6914925]
[null,null,"“Lydian Armenia” LLC","Tax Revenue Authority","Mining Royalties","Yes","Yes","SHATV-29/245","AMD",0]
[null,null,"“Lydian Armenia” LLC","Tax Revenue Authority","VAT","No","No",null,"AMD",0]
[null,null,"“Lydian Armenia” LLC","Tax Revenue Authority","Custom duties","No","No",null,"AMD",12001501]
[null,null,"“Lydian Armenia” LLC","Ministry of Territorial Administration and Development","Rent fee","Yes","Yes","SHATV-29/245","AMD",409550931]
[null,null,"“Lydian Armenia” LLC","Ministry of Territorial Administration and Development","Social obligations envisaged by the Contract ","Yes","Yes","SHATV-29/245","AMD",0]
[null,null,"“Meghradzor Gold” LLC","Tax Revenue Authority","Mining Royalties","Yes","Yes","SHATV-29/057","AMD",150564616]
[null,null,"“Meghradzor Gold” LLC","Tax Revenue Authority","VAT","No","No",null,"AMD",0]
[null,null,"“Meghradzor Gold” LLC","Tax Revenue Authority","Custom duties","No","No",null,"AMD",15261079]
[null,null,"“Meghradzor Gold” LLC","Ministry of Territorial Administration and Development","Rent fee","Yes","Yes","SHATV-29/057","AMD",24910272]
[null,null,"“Meghradzor Gold” LLC","Ministry of Territorial Administration and Development","Social obligations envisaged by the Contract ","Yes","Yes","SHATV-29/057","AMD",5850000]
[null,null,"“Teghout” CJSC","Tax Revenue Authority","Mining Royalties","Yes","Yes","SHATV-29/376","AMD",7351940956]
[null,null,"“Teghout” CJSC","Tax Revenue Authority","VAT","No","No",null,"AMD",0]
[null,null,"“Teghout” CJSC","Tax Revenue Authority","Custom duties","No","No",null,"AMD",294822352]
[null,null,"“Teghout” CJSC","Ministry of Territorial Administration and Development","Rent fee","Yes","Yes","SHATV-29/376","AMD",43169950]
[null,null,"“Teghout” CJSC","Ministry of Territorial Administration and Development","Social obligations envisaged by the Contract ","Yes","Yes","SHATV-29/376","AMD",170000000]
[null,null,"“Zangezur Copper-Molybdenum Combine“ CJSC","Tax Revenue Authority","Mining Royalties","Yes","Yes","SHATV-29/232","AMD",45301624140]
[null,null,"“Zangezur Copper-Molybdenum Combine“ CJSC","Tax Revenue Authority","VAT","No","No",null,"AMD",51694250]
[null,null,"“Zangezur Copper-Molybdenum Combine“ CJSC","Tax Revenue Authority","Custom duties","No","No",null,"AMD",497272500]
[null,null,"“Zangezur Copper-Molybdenum Combine“ CJSC","Ministry of Territorial Administration and Development","Rent fee","Yes","Yes","SHATV-29/232","AMD",373886369]
[null,null,"“Zangezur Copper-Molybdenum Combine“ CJSC","Ministry of Territorial Administration and Development","Social obligations envisaged by the Contract ","Yes","Yes","SHATV-29/232","AMD",368250000]
[]
[]
[]
[null,null,null,null,null,null,null,"Total in USD",null,{"$f":"SUMIF(Table10[Reporting currency],\"USD\",Table10[Revenue value])+(IFERROR(SUMIF(Table10[Reporting currency],\"<>USD\",Table10[Revenue value])/'Part 1 - About'!$E$45,0))","v":140804877.81078905}]
[]
[null,null,null,null,null,null,null,{"$f":"\"Total in \"&'Part 1 - About'!$E$44","v":"Total in AMD"},null,{"$f":"IF('Part 1 - About'!$E$44=\"USD\",0,SUMIF(Table10[Reporting currency],'Part 1 - About'!$E$44,Table10[Revenue value]))+(IFERROR(SUMIF(Table10[Reporting currency],\"USD\",Table10[Revenue value])*'Part 1 - About'!$E$45,0))","v":70852310490}]
[]
[null,null,"Additional information"]
[null,null,"Any additional information that is not eligible for inclusion in the table above, please include below as comments."]
[]
[null,null,"Comment 1"]
[null,null,"Comment 2"]
[null,null,"Comment 3"]
[null,null,"Comment 4"]
[null,null,"Comment 5"]
[]
[]
[]
[null,null,"For the latest version of Summary data templates, see https://eiti.org/summary-data-template"]
[null,null,"Give us your feedback or report a conflict in the data! Write to us at  data@eiti.org"]
[]
[null,null,"EITI International Secretariat"]
[null,null,"Phone: +47 222 00 800      E-mail: secretariat@eiti.org      Twitter: @EITIorg      www.eiti.org"]
[null,null,"Address: Rådhusgata 26, 0151 Oslo, Norway      P.O. Box: Postboks 340 Sentrum, 0101 Oslo, Norway"]

{"sheet":"UPSLIDE_UndoFormatting","index":6,"n_rows":1,"n_cols":2,"rows_kept":1,"cut":false,"hidden":true,"merged":[]}
[149,10]

{"sheet":"UPSLIDE_Undo","index":7,"n_rows":1,"n_cols":2,"rows_kept":1,"cut":false,"hidden":true,"merged":[]}
[149,10]

{"sheet":"Lists","index":8,"n_rows":246,"n_cols":31,"rows_kept":246,"cut":false,"hidden":true,"merged":[]}
["Table 1 - Country codes",null,null,null,null,null,null,null,"Table 2 - Simple options",null,"Table 3 - Reporting options",null,null,"Table 5 - Commodities list",null,null,null,null,"Table 6 - GFS Codes / Classification",null,null,null,null,null,null,null,"Table 7 - Sectors",null,"Table 8 - Project phases",null,"Table 9 - Government entity types"]
["Country or Area name","ISO Alpha-2 Code","ISO Alpha-3 Code","ISO Numeric Code (UN M49)","Currency code (ISO-4217)","Currency code num (ISO-4217)","Currency",null,"List",null,"List",null,null,"HS ProductCode","HS Product Description","HS Product Description w volume",null,null,"Combined","GFS description","GFS Code","GFS Level 1","GFS Level 2","GFS Level 3","GFS Level 4",null,"Sector(s)",null,"Project phases",null,"< Agency type >"]
["United States of America","US","USA","840","USD",840,"United States dollar",null,"< Choose option >",null,"< EITI Reporting or systematically disclosed? >",null,null,"2501","Salt and pure sodium chloride (2501)","Salt and pure sodium chloride (2501), volume",null,null,"Ordinary taxes on income, profits and capital gains (1112E1)","Ordinary taxes on income, profits and capital gains","1112E1","Taxes (11E)","Taxes on income, profits and capital gains (111E)","Ordinary taxes on income, profits and capital gains (1112E1)","Ordinary taxes on income, profits and capital gains (1112E1)",null,"<Choose sector>",null,"< Choose phase >",null,"Central goverment"]
["Afghanistan","AF","AFG","4","AFN",971,"Afghan afghani",null,"Yes",null,"Yes, systematically disclosed",null,null,"2502","Iron pyrites (2502)","Iron pyrites (2502), volume",null,null,"Extraordinary taxes on income, profits and capital gains (1112E2)","Extraordinary taxes on income, profits and capital gains","1112E2","Taxes (11E)","Taxes on income, profits and capital gains (111E)","Extraordinary taxes on income, profits and capital gains (1112E2)","Extraordinary taxes on income, profits and capital gains (1112E2)",null,"Oil",null,"Exploration",null,"State government"]
["Aland Islands","AX","ALA","248","EUR",978,"Euro",null,"Partially",null,"Yes, through EITI reporting",null,null,"2503","Sulphur of all kinds (2503)","Sulphur of all kinds (2503), volume",null,null,"Taxes on payroll and workforce (112E)","Taxes on payroll and workforce","112E","Taxes (11E)","Taxes on payroll and workforce (112E)","Taxes on payroll and workforce (112E)","Taxes on payroll and workforce (112E)",null,"Gas",null,"Production",null,"Local government"]
["Albania","AL","ALB","8","ALL",8,"Albanian lek",null,"No",null,"Not applicable",null,null,"2504","Natural graphite (2504)","Natural graphite (2504), volume",null,null,"Taxes on property (113E)","Taxes on property","113E","Taxes (11E)","Taxes on property (113E)","Taxes on property (113E)","Taxes on property (113E)",null,"Mining",null,"Development",null,"State-owned enterprises & public corporations "]
["Algeria","DZ","DZA","12","DZD",12,"Algerian dinar",null,"Not applicable",null,"Not available",null,null,"2505","Natural sands (2505)","Natural sands (2505), volume",null,null,"General taxes on goods and services (VAT, sales tax, turnover tax) (1141E)","General taxes on goods and services (VAT, sales tax, turnover tax)","1141E","Taxes (11E)","Taxes on goods and services (114E)","General taxes on goods and services (VAT, sales tax, turnover tax) (1141E)","General taxes on goods and services (VAT, sales tax, turnover tax) (1141E)",null,"Not applicable",null,"Other",null,"Other"]
["American Samoa","AS","ASM","16","USD",840,"United States dollar",null,null,null,null,null,null,"2506","Quartz (2506)","Quartz (2506), volume",null,null,"Excise taxes (1142E)","Excise taxes","1142E","Taxes (11E)","Taxes on goods and services (114E)","Excise taxes (1142E)","Excise taxes (1142E)",null,"Oil & Gas",null,"Not applicable"]
["Andorra","AD","AND","20","EUR",978,"Euro",null,"Table 4 - Currency code list",null,null,null,null,"2507","Kaolin (2507)","Kaolin (2507), volume",null,null,"Licence fees (114521E)","Licence fees","114521E","Taxes (11E)","Taxes on goods and services (114E)","Taxes on use of goods/permission to use goods or perform activities (1145E)","Licence fees (114521E)",null,"Other"]
["Angola","AO","AGO","24","AOA",973,"Angolan kwanza",null,"Currency code (ISO-4217)","Currency code num (ISO-4217)","Currency",null,null,"2508","Other clays (2508)","Other clays (2508), volume",null,null,"Emission and pollution taxes (114522E)","Emission and pollution taxes","114522E","Taxes (11E)","Taxes on goods and services (114E)","Taxes on use of goods/permission to use goods or perform activities (1145E)","Emission and pollution taxes (114522E)"]
["Anguilla","AI","AIA","660","XCD",951,"East Caribbean dollar",null,"AED",784,"United Arab Emirates dirham",null,null,"2509","Chalk (2509)","Chalk (2509), volume",null,null,"Motor vehicle taxes (11451E)","Motor vehicle taxes","11451E","Taxes (11E)","Taxes on goods and services (114E)","Taxes on use of goods/permission to use goods or perform activities (1145E)","Motor vehicle taxes (11451E)"]
["Antigua and Barbuda","AG","ATG","28","XCD",951,"East Caribbean dollar",null,"AFN",971,"Afghan afghani",null,null,"2510","Natural calcium phosphates (2510)","Natural calcium phosphates (2510), volume",null,null,"Customs and other import duties (1151E)","Customs and other import duties","1151E","Taxes (11E)","Taxes on international trade and transactions (115E)","Customs and other import duties (1151E)","Customs and other import duties (1151E)"]
["Argentina","AR","ARG","32","ARS",32,"Argentine peso",null,"ALL",8,"Albanian lek",null,null,"2511","Natural barium sulphate (2511)","Natural barium sulphate (2511), volume",null,null,"Taxes on exports (1152E)","Taxes on exports","1152E","Taxes (11E)","Taxes on international trade and transactions (115E)","Taxes on exports (1152E)","Taxes on exports (1152E)"]
["Armenia","AM","ARM","51","AMD",51,"Armenian dram",null,"AMD",51,"Armenian dram",null,null,"2512","Siliceous fossil meals (2512)","Siliceous fossil meals (2512), volume",null,null,"Profits of natural resource export monopolies (1153E1)","Profits of natural resource export monopolies","1153E1","Taxes (11E)","Taxes on international trade and transactions (115E)","Profits of natural resource export monopolies (1153E1)","Profits of natural resource export monopolies (1153E1)"]
["Aruba","AW","ABW","533","AWG",533,"Aruban florin",null,"ANG",532,"Netherlands Antillean guilder",null,null,"2513","Pumice stone (2513)","Pumice stone (2513), volume",null,null,"Other taxes payable by natural resource companies (116E)","Other taxes payable by natural resource companies","116E","Taxes (11E)","Other taxes payable by natural resource companies (116E)","Other taxes payable by natural resource companies (116E)","Other taxes payable by natural resource companies (116E)"]
["Australia","AU","AUS","36","AUD",36,"Australian dollar",null,"AOA",973,"Angolan kwanza",null,null,"2514","Slate (2514)","Slate (2514), volume",null,null,"Social security employer contributions (1212E)","Social security employer contributions","1212E","Social contributions (12E)","Social security employer contributions (1212E)","Social security employer contributions (1212E)","Social security employer contributions (1212E)"]
["Austria","AT","AUT","40","EUR",978,"Euro",null,"ARS",32,"Argentine peso",null,null,"2515","Marble (2515)","Marble (2515), volume",null,null,"From state-owned enterprises (1412E1)","From state-owned enterprises","1412E1","Other revenue (14E)","Property income (141E)","Dividends (1412E)","From state-owned enterprises (1412E1)"]
["Azerbaijan","AZ","AZE","31","AZN",944,"Azerbaijani manat",null,"AUD",36,"Australian dollar",null,null,"2516","Granite (2516)","Granite (2516), volume",null,null,"From government participation (equity) (1412E2)","From government participation (equity)","1412E2","Other revenue (14E)","Property income (141E)","Dividends (1412E)","From government participation (equity) (1412E2)"]
["Bahamas","BS","BHS","44","BSD",44,"Bahamian dollar",null,"AWG",533,"Aruban florin",null,null,"2517","Pebbles (2517)","Pebbles (2517), volume",null,null,"Withdrawals from income of quasi-corporations (1413E)","Withdrawals from income of quasi-corporations","1413E","Other revenue (14E)","Property income (141E)","Withdrawals from income of quasi-corporations (1413E)","Withdrawals from income of quasi-corporations (1413E)"]
["Bahrain","BH","BHR","48","BHD",48,"Bahraini dinar",null,"AZN",944,"Azerbaijani manat",null,null,"2518","Dolomite (2518)","Dolomite (2518), volume",null,null,"Royalties (1415E1)","Royalties","1415E1","Other revenue (14E)","Property income (141E)","Rent (1415E)","Royalties (1415E1)"]
["Bangladesh","BD","BGD","50","BDT",50,"Bangladeshi taka",null,"BAM",977,"Bosnia and Herzegovina convertible mark",null,null,"2519","Natural magnesium carbonate (2519)","Natural magnesium carbonate (2519), volume",null,null,"Bonuses (1415E2)","Bonuses","1415E2","Other revenue (14E)","Property income (141E)","Rent (1415E)","Bonuses (1415E2)"]
["Barbados","BB","BRB","52","BBD",52,"Barbadian dollar",null,"BBD",52,"Barbadian dollar",null,null,"2520","Gypsum (2520)","Gypsum (2520), volume",null,null,"Delivered/paid directly to government (1415E31)","Delivered/paid directly to government","1415E31","Other revenue (14E)","Property income (141E)","Rent (1415E)","Production entitlements (in-kind or cash) (1415E3)"]
["Belarus","BY","BLR","112","BYR",974,"Belarussian ruble",null,"BDT",50,"Bangladeshi taka",null,null,"2521","Limestone (2521)","Limestone (2521), volume",null,null,"Delivered/paid to state-owned enterprise(s) (1415E32)","Delivered/paid to state-owned enterprise(s)","1415E32","Other revenue (14E)","Property income (141E)","Rent (1415E)","Production entitlements (in-kind or cash) (1415E3)"]
["Belgium","BE","BEL","56","EUR",978,"Euro",null,"BGN",975,"Bulgarian lev (old)",null,null,"2522","Quicklime (2522)","Quicklime (2522), volume",null,null,"Compulsory transfers to government (infrastructure and other) (1415E4)","Compulsory transfers to government (infrastructure and other)","1415E4","Other revenue (14E)","Property income (141E)","Rent (1415E)","Compulsory transfers to government (infrastructure and other) (1415E4)"]
["Belize","BZ","BLZ","84","BZD",84,"Belize dollar",null,"BHD",48,"Bahraini dinar",null,null,"2523","Portland cement (2523)","Portland cement (2523), volume",null,null,"Other rent payments (1415E5)","Other rent payments","1415E5","Other revenue (14E)","Property income (141E)","Rent (1415E)","Other rent payments (1415E5)"]
["Benin","BJ","BEN","204","XOF",952,"West African CFA franc",null,"BIF",108,"Burundian franc",null,null,"2524","Asbestos (2524)","Asbestos (2524), volume",null,null,"Sales of goods and services by government units (1421E)","Sales of goods and services by government units","1421E","Other revenue (14E)","Sales of goods and services (142E)","Sales of goods and services by government units (1421E)","Sales of goods and services by government units (1421E)"]
["Bermuda","BM","BMU","60","BMD",60,"Bermudian dollar",null,"BMD",60,"Bermudian dollar",null,null,"2525","Mica (2525)","Mica (2525), volume",null,null,"Administrative fees for government services (1422E)","Administrative fees for government services","1422E","Other revenue (14E)","Sales of goods and services (142E)","Administrative fees for government services (1422E)","Administrative fees for government services (1422E)"]
["Bhutan","BT","BTN","64","BTN",64,"Bhutanese ngultrum",null,"BND",96,"Brunei dollar",null,null,"2526","Natural steatite (2526)","Natural steatite (2526), volume",null,null,"Fines, penalties, and forfeits (143E)","Fines, penalties, and forfeits","143E","Other revenue (14E)","Fines, penalties, and forfeits (143E)","Fines, penalties, and forfeits (143E)","Fines, penalties, and forfeits (143E)"]
["Bolivia","BO","BOL","68","BOB",68,"Bolivian boliviano",null,"BOB",68,"Bolivian boliviano",null,null,"2527","Natural cryolite (2527)","Natural cryolite (2527), volume",null,null,"Voluntary transfers to government (donations) (144E1)","Voluntary transfers to government (donations)","144E1","Other revenue (14E)","Voluntary transfers to government (donations) (144E1)","Voluntary transfers to government (donations) (144E1)","Voluntary transfers to government (donations) (144E1)"]
["Bosnia and Herzegovina","BA","BIH","70","BAM",977,"Bosnia and Herzegovina convertible mark",null,"BRL",986,"Brazilian real",null,null,"2528","Natural borates and concentrates (2528)","Natural borates and concentrates (2528), volume",null,null,"<Choose from menu>","<Choose from menu>","<Choose from menu>","<Choose from menu>","<Choose from menu>","<Choose from menu>","<Choose from menu>"]
["Botswana","BW","BWA","72","BWP",72,"Botswana pula",null,"BSD",44,"Bahamian dollar",null,null,"2529","Felspar (2529)","Felspar (2529), volume"]
["Brazil","BR","BRA","76","BRL",986,"Brazilian real",null,"BTN",64,"Bhutanese ngultrum",null,null,"2530","Mineral substances not elsewhere specified (2530)","Mineral substances not elsewhere specified (2530), volume"]
["British Indian Ocean Territory","IO","IOT","86","USD",840,"United States dollar",null,"BWP",72,"Botswana pula",null,null,"2601","Iron (2601)","Iron (2601), volume"]
["British Virgin Islands","VG","VGB","92","USD",840,"United States dollar",null,"BYR",974,"Belarussian ruble",null,null,"2602","Manganese (2602)","Manganese (2602), volume"]
["Brunei Darussalam","BN","BRN","96","BND",96,"Brunei dollar",null,"BZD",84,"Belize dollar",null,null,"2603","Copper (2603)","Copper (2603), volume"]
["Bulgaria","BG","BGR","100","BGN",975,"Bulgarian lev (old)",null,"CAD",124,"Canadian dollar",null,null,"2604","Nickel (2604)","Nickel (2604), volume"]
["Burkina Faso","BF","BFA","854","XOF",952,"West African CFA franc",null,"CDF",976,"Congolese franc",null,null,"2605","Cobalt (2605)","Cobalt (2605), volume"]
["Burundi","BI","BDI","108","BIF",108,"Burundian franc",null,"CHF",756,"Swiss franc",null,null,"2606","Aluminium (2606)","Aluminium (2606), volume"]
["Cambodia","KH","KHM","116","KHR",116,"Cambodian Riel",null,"CLF",990,"Chilean Unidad de Fomento",null,null,"2607","Lead (2607)","Lead (2607), volume"]
["Cameroon","CM","CMR","120","XAF",950,"Central African CFA franc",null,"CNH",0,"Chinese yuan renminbi (offshore)",null,null,"2608","Zinc (2608)","Zinc (2608), volume"]
["Canada","CA","CAN","124","CAD",124,"Canadian dollar",null,"COP",170,"Colombian peso",null,null,"2609","Tin (2609)","Tin (2609), volume"]
["Cape Verde","CV","CPV","132","CVE",132,"Cape Verdean escudo",null,"CRC",188,"Costa Rican colon",null,null,"2610","Chromium (2610)","Chromium (2610), volume"]
["Cayman Islands","KY","CYM","136","KYD",136,"Cayman Islands Dollar",null,"CUC",931,"Cuban peso convertible",null,null,"2611","Tungsten (2611)","Tungsten (2611), volume"]
["Central African Republic","CF","CAF","140","XAF",950,"Central African CFA franc",null,"CVE",132,"Cape Verdean escudo",null,null,"2612","Uranium or thorium (2612)","Uranium or thorium (2612), volume"]
["Chad","TD","TCD","148","XAF",950,"Central African CFA franc",null,"CZK",203,"Czech koruna",null,null,"2613","Molybdenum (2613)","Molybdenum (2613), volume"]
["Chile","CL","CHL","152","CLF",990,"Chilean Unidad de Fomento",null,"DJF",262,"Djiboutian franc",null,null,"2614","Titanium (2614)","Titanium (2614), volume"]
["China","CN","CHN","156","CNH",0,"Chinese yuan renminbi (offshore)",null,"DKK",208,"Danish krone",null,null,"2615","Niobium, Vanadium, Zirconium (2615)","Niobium (2615), volume"]
["Christmas Island","CX","CXR","162","AUD",36,"Australian dollar",null,"DOP",214,"Dominican peso",null,null,"2616","Precious metals (2616)","Precious metals (2616), volume"]
["Cocos (Keeling) Islands","CC","CCK","166","AUD",36,"Australian dollar",null,"DZD",12,"Algerian dinar",null,null,"2617","Other (2617)","Other (2617), volume"]
["Colombia","CO","COL","170","COP",170,"Colombian peso",null,"EGP",818,"Egyptian pound",null,null,"2618","Granulated slag (2618)","Granulated slag (2618), volume"]
["Comoros","KM","COM","174","KMF",174,"Comorian Franc",null,"ERN",232,"Eritrean nakfa",null,null,"2619","Slag (2619)","Slag (2619), volume"]
["Costa Rica","CR","CRI","188","CRC",188,"Costa Rican colon",null,"ETB",230,"Ethiopian birr",null,null,"2620","Ash and residues (2620)","Ash and residues (2620), volume"]
["Cote d'Ivoire","CI","CIV","384","XOF",952,"West African CFA franc",null,"EUR",978,"Euro",null,null,"2621","Other slag and ash (2621)","Other slag and ash (2621), volume"]
["Croatia","HR","HRV","191","HRK",191,"Croatian Kuna",null,"FJD",242,"Fijian dollar",null,null,"2701","Coal (2701)","Coal (2701), volume"]
["Cuba","CU","CUB","192","CUC",931,"Cuban peso convertible",null,"FKP",238,"Falkland Islands pound",null,null,"2702","Lignite (2702)","Lignite (2702), volume"]
["Cyprus","CY","CYP","196","EUR",978,"Euro",null,"GBP",826,"Pound sterling",null,null,"2703","Peat (2703)","Peat (2703), volume"]
["Czech Republic","CZ","CZE","203","CZK",203,"Czech koruna",null,"GEL",981,"Georgian lari",null,null,"2704","Coke and semi-coke (2704)","Coke and semi-coke (2704), volume"]
["Democratic Republic of Congo","CD","COD","180","CDF",976,"Congolese franc",null,"GGP",0,"Pound",null,null,"2705","Coal gas (2705)","Coal gas (2705), volume"]
["Denmark","DK","DNK","208","DKK",208,"Danish krone",null,"GHS",936,"Ghanaian cedi",null,null,"2706","Tar distilled from coal (2706)","Tar distilled from coal (2706), volume"]
["Djibouti","DJ","DJI","262","DJF",262,"Djiboutian franc",null,"GIP",292,"Gibraltar pound",null,null,"2707","Products of the distillation of coal tar (2707)","Products of the distillation of coal tar (2707), volume"]
["Dominica","DM","DMA","212","XCD",951,"East Caribbean dollar",null,"GMD",270,"Gambian dalasi",null,null,"2708","Pitch and pitch coke (2708)","Pitch and pitch coke (2708), volume"]
["Dominican Republic","DO","DOM","214","DOP",214,"Dominican peso",null,"GNF",324,"Guinean franc",null,null,"2709","Crude oil (2709)","Crude oil (2709), volume"]
["Ecuador","EC","ECU","218","USD",840,"United States dollar",null,"GTQ",320,"Guatemalan quetzal",null,null,"2710","Petroleum oils excluding crude (2710)","Petroleum oils excluding crude (2710), volume"]
["Egypt","EG","EGY","818","EGP",818,"Egyptian pound",null,"GYD",328,"Guyanese Dollar",null,null,"2711","Natural gas (2711)","Natural gas (2711), volume"]
["El Salvador","SV","SLV","222","USD",840,"United States dollar",null,"HKD",344,"Hong Kong Dollar",null,null,"2712","Petroleum jelly (2712)","Petroleum jelly (2712), volume"]
["Equatorial Guinea","GQ","GNQ","226","XAF",950,"Central African CFA franc",null,"HNL",340,"Honduran Lempira",null,null,"2713","Petroleum coke (2713)","Petroleum coke (2713), volume"]
["Eritrea","ER","ERI","232","ERN",232,"Eritrean nakfa",null,"HRK",191,"Croatian Kuna",null,null,"2714","Bitumen and asphalt (2714)","Bitumen and asphalt (2714), volume"]
["Estonia","EE","EST","233","EUR",978,"Euro",null,"HTG",332,"Haitian Gourde",null,null,"2715","Bituminous mixtures (2715)","Bituminous mixtures (2715), volume"]
["Eswatini","SZ","SWZ","748","SZL",748,"Swazi Lilangeni",null,"HUF",348,"Hungarian Forint",null,null,"2716","Electrical energy (2716)","Electrical energy (2716), volume"]
["Ethiopia","ET","ETH","231","ETB",230,"Ethiopian birr",null,"IDR",360,"Indonesian Rupiah",null,null,"7102","Diamonds (7102)","Diamonds (7102), volume"]
["Falkland Islands","FK","FLK","238","FKP",238,"Falkland Islands pound",null,"ILS",376,"Israeli New Shekel",null,null,"7106","Silver (7106)","Silver (7106), volume"]
["Faroe Islands","FO","FRO","234","DKK",208,"Danish krone",null,"IMP",0,"Isle of Man Pound",null,null,"7108","Gold (7108)","Gold (7108), volume"]
["Fiji","FJ","FJI","242","FJD",242,"Fijian dollar",null,"INR",356,"Indian Rupee",null,null,7103,"Precious stones (other than diamonds) (7103)","Precious stones (other than diamonds) (7103), volume"]
["Finland","FI","FIN","246","EUR",978,"Euro",null,"IQD",368,"Iraqi dinar"]
["France","FR","FRA","250","EUR",978,"Euro",null,"IRR",364,"Iranian Rial"]
["French Guiana","GF","GUF","254","EUR",978,"Euro",null,"ISK",352,"Icelandic króna"]
["French Polynesia","PF","PYF","258","EUR",978,"Euro",null,"JEP",0,"Jersey Pound"]
["French Southern Territories","TF","ATF","260","EUR",978,"Euro",null,"JMD",388,"Jamaican Dollar"]
["Gabon","GA","GAB","266","XAF",950,"Central African CFA franc",null,"JOD",400,"Jordanian Dinar"]
["Gambia","GM","GMB","270","GMD",270,"Gambian dalasi",null,"JPY",392,"Japanese Yen"]
["Georgia","GE","GEO","268","GEL",981,"Georgian lari",null,"KES",404,"Kenyan Shilling"]
["Germany","DE","DEU","276","EUR",978,"Euro",null,"KGS",417,"Kyrgyzstani Som"]
["Ghana","GH","GHA","288","GHS",936,"Ghanaian cedi",null,"KHR",116,"Cambodian Riel"]
["Gibraltar","GI","GIB","292","GIP",292,"Gibraltar pound",null,"KMF",174,"Comorian Franc"]
["Greece","GR","GRC","300","EUR",978,"Euro",null,"KPW",408,"North Korean Won"]
["Greenland","GL","GRL","304","DKK",208,"Danish krone",null,"KRW",410,"South Korean Won"]
["Grenada","GD","GRD","308","XCD",951,"East Caribbean dollar",null,"KWD",414,"Kuwaiti Dinar"]
["Guadeloupe","GP","GLP","312","EUR",978,"Euro",null,"KYD",136,"Cayman Islands Dollar"]
["Guam","GU","GUM","316","USD",840,"United States dollar",null,"KZT",398,"Kazakhstani Tenge"]
["Guatemala","GT","GTM","320","GTQ",320,"Guatemalan quetzal",null,"LAK",418,"Lao Kip"]
["Guernsey","GG","GGY","831","GGP",0,"Pound",null,"LBP",422,"Lebanese Pound"]
["Guinea","GN","GIN","324","GNF",324,"Guinean franc",null,"LKR",144,"Sri Lankan Rupee"]
["Guinea-Bissau","GW","GNB","624","XOF",952,"West African CFA franc",null,"LRD",430,"Liberian Dollar"]
["Guyana","GY","GUY","328","GYD",328,"Guyanese Dollar",null,"LSL",426,"Lesotho loti"]
["Haiti","HT","HTI","332","HTG",332,"Haitian Gourde",null,"LYD",434,"Libyan Dinar"]
["Heard and Mcdonald Islands","HM","HMD","334",null,null,null,null,"MAD",504,"Moroccan Dirham"]
["Honduras","HN","HND","340","HNL",340,"Honduran Lempira",null,"MDL",498,"Moldovan Leu"]
["Hong Kong","HK","HKG","344","HKD",344,"Hong Kong Dollar",null,"MGA",969,"Malagasy Ariary"]
["Hungary","HU","HUN","348","HUF",348,"Hungarian Forint",null,"MKD",807,"Macedonian denar"]
["Iceland","IS","ISL","352","ISK",352,"Icelandic króna",null,"MMK",104,"Burmese Kyat"]
["India","IN","IND","356","INR",356,"Indian Rupee",null,"MNT",496,"Mongolian Tugrik"]
["Indonesia","ID","IDN","360","IDR",360,"Indonesian Rupiah",null,"MOP",446,"Macanese patca"]
["Iran","IR","IRN","364","IRR",364,"Iranian Rial",null,"MRO",478,"Mauritanian Ouguiya"]
["Iraq","IQ","IRQ","368","IQD",368,"Iraqi dinar",null,"MUR",480,"Mauritian Rupee"]
["Ireland","IE","IRL","372","EUR",978,"Euro",null,"MVR",462,"Maldivian Rufiyaa"]
["Isle of Man","IM","IMN","833","IMP",0,"Isle of Man Pound",null,"MWK",454,"Malawian kwacha"]
["Israel","IL","ISR","376","ILS",376,"Israeli New Shekel",null,"MXN",484,"Mexican Peso"]
["Italy","IT","ITA","380","EUR",978,"Euro",null,"MYR",458,"Malaysian Ringgit"]
["Jamaica","JM","JAM","388","JMD",388,"Jamaican Dollar",null,"MZN",943,"Mozambique Metical"]
["Japan","JP","JPN","392","JPY",392,"Japanese Yen",null,"NAD",516,"Namibian Dollar"]
["Jersey","JE","JEY","832","JEP",0,"Jersey Pound",null,"NGN",566,"Nigerian Naira"]
["Jordan","JO","JOR","400","JOD",400,"Jordanian Dinar",null,"NIO",558,"Nicaraguan córdoba oro"]
["Kazakhstan","KZ","KAZ","398","KZT",398,"Kazakhstani Tenge",null,"NOK",578,"Norwegian Krone"]
["Kenya","KE","KEN","404","KES",404,"Kenyan Shilling",null,"NPR",524,"Nepalese Rupee"]
["Kiribati","KI","KIR","296",null,null,null,null,"NZD",554,"New Zealand Dollar"]
["Korea (North)","KP","PRK","408","KPW",408,"North Korean Won",null,"OMR",512,"Omani Rial"]
["Korea (South)","KR","KOR","410","KRW",410,"South Korean Won",null,"PAB",590,"Panamanian balboa"]
["Kosovo","XK","XKX","-","EUR",978,"Euro",null,"PEN",604,"Peruvian Sol"]
["Kuwait","KW","KWT","414","KWD",414,"Kuwaiti Dinar",null,"PGK",598,"Papua New Guinean Kina"]
["Kyrgyz Republic","KG","KGZ","417","KGS",417,"Kyrgyzstani Som",null,"PHP",608,"Philippine Peso"]
["Lao PDR","LA","LAO","418","LAK",418,"Lao Kip",null,"PKR",586,"Pakistani Rupee"]
["Latvia","LV","LVA","428","EUR",978,"Euro",null,"PLN",985,"Polish Zloty"]
["Lebanon","LB","LBN","422","LBP",422,"Lebanese Pound",null,"PYG",600,"Paraguayan guaraní"]
["Lesotho","LS","LSO","426","LSL",426,"Lesotho loti",null,"QAR",634,"Qatari Riyal"]
["Liberia","LR","LBR","430","LRD",430,"Liberian Dollar",null,"RON",946,"Romanian Leu"]
["Libya","LY","LBY","434","LYD",434,"Libyan Dinar",null,"RSD",941,"Serbian Dinar"]
["Liechtenstein","LI","LIE","438","CHF",756,"Swiss franc",null,"RUB",643,"Russian Ruble"]
["Lithuania","LT","LTU","440","EUR",978,"Euro",null,"RWF",646,"Rwandan Franc"]
["Luxembourg","LU","LUX","442","EUR",978,"Euro",null,"SAR",682,"Saudi Riyal"]
["Macao","MO","MAC","446","MOP",446,"Macanese patca",null,"SBD",90,"Solomon Islands Dollar"]
["Macedonia","MK","MKD","807","MKD",807,"Macedonian denar",null,"SCR",690,"Seychellois rupee"]
["Madagascar","MG","MDG","450","MGA",969,"Malagasy Ariary",null,"SDG",938,"Sudanese Pound"]
["Malawi","MW","MWI","454","MWK",454,"Malawian kwacha",null,"SEK",752,"Swedish Krona"]
["Malaysia","MY","MYS","458","MYR",458,"Malaysian Ringgit",null,"SGD",702,"Singapore Dollar"]
["Maldives","MV","MDV","462","MVR",462,"Maldivian Rufiyaa",null,"SHP",654,"Saint Helena Pound"]
["Mali","ML","MLI","466","XOF",952,"West African CFA franc",null,"SLL",694,"Sierra Leonean leone"]
["Malta","MT","MLT","470","EUR",978,"Euro",null,"SOS",706,"Somali Shilling"]
["Marshall Islands","MH","MHL","584","USD",840,"United States dollar",null,"SRD",968,"Surinamese dollar"]
["Martinique","MQ","MTQ","474","EUR",978,"Euro",null,"SSP",728,"South Sudanese Pound"]
["Mauritania","MR","MRT","478","MRO",478,"Mauritanian Ouguiya",null,"STD",678,"São Tomé and Príncipe Dobra"]
["Mauritius","MU","MUS","480","MUR",480,"Mauritian Rupee",null,"SYP",760,"Syrian Pound"]
["Mayotte","YT","MYT","175","EUR",978,"Euro",null,"SZL",748,"Swazi Lilangeni"]
["Mexico","MX","MEX","484","MXN",484,"Mexican Peso",null,"THB",764,"Thai Baht"]
["Micronesia","FM","FSM","583","USD",840,"United States dollar",null,"TJS",972,"Tajikistani Somoni"]
["Moldova","MD","MDA","498","MDL",498,"Moldovan Leu",null,"TMT",934,"Turkmenistan New Manat"]
["Monaco","MC","MCO","492","EUR",978,"Euro",null,"TND",788,"Tunisian dinar"]
["Mongolia","MN","MNG","496","MNT",496,"Mongolian Tugrik",null,"TOP",776,"Tongan pa'anga"]
["Montenegro","ME","MNE","499","EUR",978,"Euro",null,"TRY",949,"Turkish lira"]
["Montserrat","MS","MSR","500","XCD",951,"East Caribbean dollar",null,"TTD",780,"Trinidad and Tobago Dollar"]
["Morocco","MA","MAR","504","MAD",504,"Moroccan Dirham",null,"TVD",0,"Tuvaluan dollar"]
["Mozambique","MZ","MOZ","508","MZN",943,"Mozambique Metical",null,"TWD",901,"New Taiwan dollar"]
["Myanmar","MM","MMR","104","MMK",104,"Burmese Kyat",null,"TZS",834,"Tanzanian shilling"]
["Namibia","NA","NAM","516","NAD",516,"Namibian Dollar",null,"UAH",980,"Ukrainian Hryvnia"]
["Nauru","NR","NRU","520",null,null,null,null,"UGX",800,"Ugandan shilling"]
["Nepal","NP","NPL","524","NPR",524,"Nepalese Rupee",null,"USD",840,"United States dollar"]
["Netherlands","NL","NLD","528","EUR",978,"Euro",null,"USD"]
["Netherlands Antilles","AN","ANT","530","ANG",532,"Netherlands Antillean guilder",null,"UYU",858,"Uruguayan Peso"]
["New Caledonia","NC","NCL","540",null,null,null,null,"UZS",860,"Uzbekistani Som"]
["New Zealand","NZ","NZL","554","NZD",554,"New Zealand Dollar",null,"VEF",937,"Venezuelan Bolívar fuerte"]
["Nicaragua","NI","NIC","558","NIO",558,"Nicaraguan córdoba oro",null,"VND",704,"Vietnamese Dong"]
["Niger","NE","NER","562","XOF",952,"West African CFA franc",null,"VUV",548,"Vanuatu Vatu"]
["Nigeria","NG","NGA","566","NGN",566,"Nigerian Naira",null,"WST",882,"Samoan tala"]
["Niue","NU","NIU","570",null,null,null,null,"XAF",950,"Central African CFA franc"]
["Norfolk Island","NF","NFK","574",null,null,null,null,"XCD",951,"East Caribbean dollar"]
["Northern Mariana Islands","MP","MNP","580","USD",840,"United States dollar",null,"XOF",952,"West African CFA franc"]
["Norway","NO","NOR","578","NOK",578,"Norwegian Krone",null,"YER",886,"Yemeni Rial"]
["Oman","OM","OMN","512","OMR",512,"Omani Rial",null,"ZAR",710,"South African Rand"]
["Pakistan","PK","PAK","586","PKR",586,"Pakistani Rupee",null,"ZMW",967,"Zambian Kwacha"]
["Palau","PW","PLW","585","USD",840,"United States dollar"]
["Palestinian Territory","PS","PSE","275"]
["Panama","PA","PAN","591","PAB",590,"Panamanian balboa"]
["Papua New Guinea","PG","PNG","598","PGK",598,"Papua New Guinean Kina"]
["Paraguay","PY","PRY","600","PYG",600,"Paraguayan guaraní"]
["Peru","PE","PER","604","PEN",604,"Peruvian Sol"]
["Philippines","PH","PHL","608","PHP",608,"Philippine Peso"]
["Pitcairn","PN","PCN","612"]
["Poland","PL","POL","616","PLN",985,"Polish Zloty"]
["Portugal","PT","PRT","620","EUR",978,"Euro"]
["Puerto Rico","PR","PRI","630","USD",840,"United States dollar"]
["Qatar","QA","QAT","634","QAR",634,"Qatari Riyal"]
["Republic of the Congo","CG","COG","178","XAF",950,"Central African CFA franc"]
["Reunion","RE","REU","638","EUR",978,"Euro"]
["Romania","RO","ROU","642","RON",946,"Romanian Leu"]
["Russian Federation","RU","RUS","643","RUB",643,"Russian Ruble"]
["Rwanda","RW","RWA","646","RWF",646,"Rwandan Franc"]
["Saint Helena","SH","SHN","654","SHP",654,"Saint Helena Pound"]
["Saint Kitts and Nevis","KN","KNA","659","XCD",951,"East Caribbean dollar"]
["Saint Lucia","LC","LCA","662","XCD",951,"East Caribbean dollar"]
["Saint Pierre and Miquelon","PM","SPM","666","EUR",978,"Euro"]
["Saint Vincent and Grenadines","VC","VCT","670","XCD",951,"East Caribbean dollar"]
["Saint-Barthelemy","BL","BLM","652","EUR",978,"Euro"]
["Saint-Martin","MF","MAF","663","EUR",978,"Euro"]
["Samoa","WS","WSM","882","WST",882,"Samoan tala"]
["San Marino","SM","SMR","674","EUR",978,"Euro"]
["Sao Tome and Principe","ST","STP","678","STD",678,"São Tomé and Príncipe Dobra"]
["Saudi Arabia","SA","SAU","682","SAR",682,"Saudi Riyal"]
["Senegal","SN","SEN","686","XOF",952,"West African CFA franc"]
["Serbia","RS","SRB","688","RSD",941,"Serbian Dinar"]
["Seychelles","SC","SYC","690","SCR",690,"Seychellois rupee"]
["Sierra Leone","SL","SLE","694","SLL",694,"Sierra Leonean leone"]
["Singapore","SG","SGP","702","SGD",702,"Singapore Dollar"]
["Slovakia","SK","SVK","703","EUR",978,"Euro"]
["Slovenia","SI","SVN","705","EUR",978,"Euro"]
["Solomon Islands","SB","SLB","90","SBD",90,"Solomon Islands Dollar"]
["Somalia","SO","SOM","706","SOS",706,"Somali Shilling"]
["South Africa","ZA","ZAF","710","ZAR",710,"South African Rand"]
["South Georgia and the South Sandwich Islands","GS","SGS","239"]
["South Sudan","SS","SSD","728","SSP",728,"South Sudanese Pound"]
["Spain","ES","ESP","724","EUR",978,"Euro"]
["Sri Lanka","LK","LKA","144","LKR",144,"Sri Lankan Rupee"]
["Sudan","SD","SDN","736","SDG",938,"Sudanese Pound"]
["Suriname","SR","SUR","740","SRD",968,"Surinamese dollar"]
["Svalbard and Jan Mayen Islands","SJ","SJM","744"]
["Sweden","SE","SWE","752","SEK",752,"Swedish Krona"]
["Switzerland","CH","CHE","756","CHF",756,"Swiss franc"]
["Syria","SY","SYR","760","SYP",760,"Syrian Pound"]
["Taiwan","TW","TWN","158","TWD",901,"New Taiwan dollar"]
["Tajikistan","TJ","TJK","762","TJS",972,"Tajikistani Somoni"]
["Tanzania","TZ","TZA","834","TZS",834,"Tanzanian shilling"]
["Thailand","TH","THA","764","THB",764,"Thai Baht"]
["Timor-Leste","TL","TLS","626","USD",840,"United States dollar"]
["Togo","TG","TGO","768","XOF",952,"West African CFA franc"]
["Tokelau","TK","TKL","772"]
["Tonga","TO","TON","776","TOP",776,"Tongan pa'anga"]
["Trinidad and Tobago","TT","TTO","780","TTD",780,"Trinidad and Tobago Dollar"]
["Tunisia","TN","TUN","788","TND",788,"Tunisian dinar"]
["Turkey","TR","TUR","792","TRY",949,"Turkish lira"]
["Turkmenistan","TM","TKM","795","TMT",934,"Turkmenistan New Manat"]
["Turks and Caicos Islands","TC","TCA","796","USD",840,"United States dollar"]
["Tuvalu","TV","TUV","798","TVD",0,"Tuvaluan dollar"]
["Uganda","UG","UGA","800","UGX",800,"Ugandan shilling"]
["Ukraine","UA","UKR","804","UAH",980,"Ukrainian Hryvnia"]
["United Arab Emirates","AE","ARE","784","AED",784,"United Arab Emirates dirham"]
["United Kingdom","GB","GBR","826","GBP",826,"Pound sterling"]
["Uruguay","UY","URY","858","UYU",858,"Uruguayan Peso"]
["Uzbekistan","UZ","UZB","860","UZS",860,"Uzbekistani Som"]
["Vanuatu","VU","VUT","548","VUV",548,"Vanuatu Vatu"]
["Vatican","VA","VAT","336","EUR",978,"Euro"]
["Venezuela","VE","VEN","862","VEF",937,"Venezuelan Bolívar fuerte"]
["Viet Nam","VN","VNM","704","VND",704,"Vietnamese Dong"]
["Virgin Islands, US","VI","VIR","850","USD",840,"United States dollar"]
["Wallis and Futuna Islands","WF","WLF","876"]
["Western Sahara","EH","ESH","732"]
["Yemen","YE","YEM","887","YER",886,"Yemeni Rial"]
["Zambia","ZM","ZMB","894","ZMW",967,"Zambian Kwacha"]
["Zimbabwe","ZW","ZWE","716","USD",840,"United States dollar"]